Workbook

Sheet Buhlebethu Unpriced
A1: Item | B1: Description | C1: Unit | D1: Qty | E1: Rate | F1: Amount | G1: Asbestos
B3: SECTION No. 1
B5: Bill No. 1
B7: PRELIMINARIES
B9: NOTES
B11: The Principal Building Agreement JBCC Series 2000 (Edition 4.1 Code 2101 March 2005), recommended by the Joint Building Contracts Committee and amended as hereinafter described, shall apply.
B13: The Preliminaries (May 2005 Edition) for use with the JBCC Series 2000 Principal Building Agreement as recommended by the Joint Building Contracts Committee shall be deemed to be incorporated herein.
B15: The Model Preambles for Trades as published by the Association of South African Quantity Surveyors (1999 Edition) shall be taken to be incorporated in these bills of quantities and shall be applicable to the building works.
B17: Tenderers are referred to the above mentioned documents for the full intent and meaning of each clause thereof. These clauses are hereinafter referred to by clause number and heading only. Where standard clauses or alternatives are not applicable to this contract, such modifications/corrections or additions as are necessary, are given as far as possible under each relevant clause heading.
B19: No claim whatsoever shall be entertained in respect of errors or omissions in pricing due to brevity of descriptions of items which are fully described when read in Preliminaries and Preambles.
B21: The Tenderers shall allow opposite each of the Clauses whatever costs and charges he may consider necessary for the carrying out, comply with and due observance of the provisions, conditions and requirements set out herein. Only priced items will be considered in respect of any adjustment of this Section. Any items left unpriced will be understood to be provided free of charge and no claim for any extras arising out of the Tenderer's omission to price any item will be entertained.
B23: Where modifications or amendments as described are made, such modifications and/or amendments shall supercede any conflicting provisions in the relevant Clauses of the Preliminaries or the Principal Building Agreement and the tenderer shall make due allowance for whatever costs and charges he may consider necessary for the carrying out and observance of the provisions of the clauses as modified and/or amended.
B25: Any item not relevant to this Contract is marked N/A.
B27: If alternative A for the adjustment of Preliminaries is selected (Clause 10.3) then each priced item shall be clearly divided according to one or more of the following denotations:
B29: F = Fixed amount
B30: V = Variable in proportion to contract value
B31: T = Variable in proportion to construction period
B35: SECTION A: PRINCIPAL BUILDING AGREEMENT (JBCC SERIES 2000 - EDITION 4.1 CODE 2101 MARCH 2005)
B37: DEFINITIONS
B39: Definitions and Interpretation (Clause 1.0) | C39: Item | D39: 1.00
B41: F:.........................V:........................T:..........................
B46: Carried to Collection
B47: Bill No. 1
B48: Preliminaries
B50: OBJECTIVE AND PREPARATION
B52: Offer acceptance and Performance (Clause 2.0) | C52: Item | D52: 1.00
B54: F:....................... V:........................ T:.........................
B56: Documents (Clause 3.0) | C56: Item | D56: 1.00
B58: The Bills of Quantities shall not be used for ordering of materials
B60: Clause 3.1 shall be deleted in its entirety.
B62: Clause 3.2.2 shall be deleted in its entirety.
B64: Clause 3.3 shall be deleted and replaced with: "The Contractor shall, before or at Site Handover, sign and deliver to the Principal Agent, a waiver of contractor's lien".
B66: F:........................ V:.........................T:.............................
B68: Design responsibility (Clause 4.0) | C68: Item | D68: 1.00
B70: The following new clauses are hereby added to this clause:
B72: Any sub-contractor whose subcontract involves design work will be required to sign an indemnity in order to provide to the employer evidence of "professional indemnity" insurance for such design work.
B74: If the Contractor fails to obtain the necessary design warranties from the subcontractors, the design responsibility shall be deemed to devolve upon the Contractor.
B76: F:......................... V:........................T:.............................
B78: Employer's agents (Clause 5.0) | C78: Item | D78: 1.00
B80: F:..........................V:.........................T:.............................
B82: Site representative (Clause 6.0) | C82: Item | D82: 1.00
B84: Clause 6 is amended by the addition of the following:
B87: The names, CV's and organogram of the contractor's proposed management team shall be submitted to the principal agent prior to commencement on site and, after the principal agent's agreement on the composition and competence thereof has been obtained, no changes shall be made nor shall any member of the said team be removed from the project while remaining in the employ of the contractor, without the principal agent's prior written approval.
B89: F:........................ V:........................ T:...............................
B91: Compliance with regulations (Clause 7.0) | C91: Item | D91: 1.00
B93: Clause 7.0 is amended by the addition of the following clause:
B95: The employer reserves the right to pay direct (i.e. not through the contractor) for all or any permanent connections to local or other authority services, for which provisional amounts have been included within the selected subcontract bill/section hereof. In the event of the employer paying direct for these charges, the contractor will not be entitled to a ten percent (10%) mark-up in terms of Clause 32.4. All such provisional amounts included in the contract sum will be omitted.
B101: Carried to Collection
B102: Bill No. 1
B103: Preliminaries
B105: Without limiting the generality of the provisions of clause 7.0 of the agreement, the contractor's attention is drawn to the provisions of the Construction Regulations, 2003 issued in terms of the Occupational Health and Safety Act, 1993 in which it is specifically stated that the employer shall prepare a documented health and safety specification for the works and that the employer shall ensure that the contractor has made provision for the cost of health and safety measures during the execution of the works. The principal agent shall, on behalf of the employer, issue such health and safety specification and the contractor shall price opposite this item for compliance with the act and the regulations and the provisions of the aforementioned health and safety specification, provided such provisions are reasonable in terms of the act and the regulations.
B107: F:...................... V:......................... T:............................
B109: Works risk (Clause 8.0) | C109: Item | D109: 1.00
B111: Clause 8.0 is amended by the addition of the following clause:
B113: 8.2.3 The contractor shall be liable for and pay the deductibles.
B115: Clause 8.6 is deleted and substituted with:
B117: The Contractor shall forthwith notify the principal agent, the Employer and Employer's Insurance Broker, as well as any other insurer involved of any physical loss and damage to the works that comes to his attention.
B119: F:......................... V:............................ T:................................
B120: Indemnities (Clause 9.0) | C120: Item | D120: 1.00
B122: Clause 9.1.1 is deleted and substituted with:
B124: Claims from other parties consequent upon the death or bodily injury or illness of any person or physical loss or damage to any property, other than the works, arising out of or due to the execution of the works or occupation of the Site by the Contractor or his Subcontractors".
B126: F:....................... V:..................... T:...........................
B128: Works insurances (Clause 10.0) | C128: Item | D128: 1.00
B130: Clause 10.0 is amended by the addition of the following clause:
B132: 10.5 The Contractor shall be liable for and pay the deductibles.
B134: F:........................ V:........................ T:.............................
B136: Liability insurances (Clause 11.0) | C136: Item | D136: 1.00
B138: Clause 11.0 is amended by the addition of the following clause:
B140: 11.3 The Contractor shall be liable for and pay the deductible.
B142: F:....................... V:..................... T:............................
B144: Effecting insurances (Clause 12.0) | C144: Item | D144: 1.00
B146: F:....................... V:......................... T:.......................
B148: No clause | C148: Item | D148: 1.00
B150: F:....................... V:......................... T:.............................
B152: Security (Clause 14.0) | C152: Item | D152: 1.00
B158: Carried to Collection
B159: Bill No. 1
B160: Preliminaries
B162: Tenderers are required to submit proof with their tenders from the Guarantor that security will be provided should their tender be accepted - such proof to be in the form of a letter from the Guarantor stating the amount of security to be provided. The above security requirement shall also apply to all nominated/selected sub-contractors.
B164: The following new sub-clause shall be added:
B166: In the event that the value of the works (excluding adjustments in terms of the contract price adjustment provisions) were to increase during the course of the contract by an amount of 15% or more of the contract sum, upon written request from the Principal Agent, the Contractor shall immediately arrange to have the construction guarantee "guaranteed sum" increased accordingly, the verified cost of which shall be added to the contract sum".
B168: F:....................... V:......................... T:...........................
B170: EXECUTION
B172: Preparation for and execution of the works (Clause 15.0) | C172: Item | D172: 1.00
B174: F:....................... V:....................... T:.............................
B176: Access to the works (Clause 16.0) | C176: Item | D176: 1.00
B178: F:....................... V:......................... T:..........................
B180: Contract instructions (Clause 17.0) | C180: Item | D180: 1.00
B182: F:....................... V:......................... T:.............................
B184: Setting out of the works (Clause 18.0) | C184: Item | D184: 1.00
B186: The following sub-clauses are hereby added to this clause:
B188: 18.5 The Contractor shall perform tolerance control checks regularly throughout the contract period and report on these at regular intervals to the Principal Agent".
B190: F:....................... V:....................... T:.............................
B192: Assignment (Clause 19.0) | C192: Item | D192: 1.00
B194: F:....................... V:......................... T:.............................
B196: Nominated sub-contractors (Clause 20.0) | C196: Item | D196: 1.00
B198: All amounts allowed under Provisional Sums are intended to be awarded to Nominated Subcontractors.
B200: F:....................... V:...................... T:...........................
B202: Selected sub-contractors (Clause 21.0) | C202: Item | D202: 1.00
B204: F:....................... V:...................... T:.........................
B206: Employers Direct Contractors (Clause 22.0) | C206: Item | D206: 1.00
B219: Carried to Collection
B220: Bill No. 1
B221: Preliminaries
B223: The following sub-clauses are hereby added to this clause:
B225: The contractor shall not be entitled to any percentage profit or discount on the value of any work executed by direct contractors but shall nevertheless allow direct contractors and the employer's tenants and employees to have access to the works, allocate reasonable space in the building for the storage of their material, tools and equipment, all to the satisfaction of the principal agent. The contractor shall also allow the direct contractors, etc. to use, free of charge, the ablution facilities and water and power supply on the site, and shall not in any way hinder or prevent the execution of their work.
B227: F:....................... V:......................... T:.............................
B229: Contractors Domestic Subcontractors (Clause 23.0) | C229: Item | D229: 1.00
B231: F:....................... V:......................... T:.............................
B233: COMPLETION
B235: Practical completion (Clause 24.0) | C235: Item | D235: 1.00
B237: The Contractor shall also compile his own practical completion list, a copy of which must be available to the Principal Agent prior to the Contractor giving notice to the Principal Agent to inspect the works.
B239: F:....................... V:.................... T:..........................
B241: Works Completion (Clause 25.0) | C241: Item | D241: 1.00
B243: F:....................... V:...................... T:.........................
B246: Final Completion (Clause 26.0) | C246: Item | D246: 1.00
B248: F:....................... V:....................... T:...........................
B250: Latent defects liability period (Clause 27.0) | C250: Item | D250: 1.00
B252: F:....................... V:........................ T:..........................
B254: Sectional completion (Clause 28.0) | C254: Item | D254: 1.00
B256: F:....................... V:.................... T:.............................
B258: Revision of date for practical completion (Clause 29.0) | C258: Item | D258: 1.00
B260: (1) Clause 29.0 is amended by:
B262: "29.9 Revision to the date for practical completion shall only be considered when work on the critical path of the agreed programme for the works is delayed".
B264: (2) 29.10 ACCELERATION
B266: 29.10.1 Irrespective of whether or not the Principal Agent rules that the Contractor is entitled to an extension of time or a revision of the date for practical completion, the Principal Agent shall nevertheless, at any time, be entitled to instruct the Contractor, in writing, to accelerate the progress of the remaining works, to ensure that the works are completed by the original date for practical completion or revised date as the case may be.
B276: Carried to Collection
B277: Bill No. 1
B278: Preliminaries
B280: 29.10.2 Upon receipt of such instruction, the contractor shall take necessary steps to ensure that the works are completed timeously, including the provision by him of additional resources, plant, manpower, etc. and the working overtime or additional overtime beyond that contemplated at the time of tender (at all times adhering to the regulations and requirements of all authorities) and by all other adequate and proper means and methods. The Contractor shall prove that such steps are being taken if called upon to do so.
B282: 29.10.3 The Contractor's entitlement to compensation arising out of or in respect of any revision to the date for practical completion that may have been granted by the Principal Agent, or alternatively, where the Principal Agent has instructed the Contractor to accelerate, shall be adjudicated strictly in terms of Clause B10.3 hereof. The Contractor shall not be entitled to any compensation of any nature whatsoever, other than that provided for in terms of Clause B10.3.
B284: (3) 29.11.1 The removal and replacement of material and/or workmanship that does not conform with specification or drawings shall not constitute ground for an extension of the construction period nor for an adjustment to the contract sum.
B286: F:....................... V:......................... T:.............................
B288: Penalty for non-completion (Clause 30.0) | C288: Item | D288: 1.00
B290: F:....................... V:......................... T:.............................
B292: PAYMENT
B294: Interim payment to the contractor (Clause 31.0) | C294: Item | D294: 1.00
B296: Materials and goods off site in terms of Clause 31.6.5 will not be included in the amount authorized for payment.
B298: Clause 31.9: The period of payment by the employer to the contractor of the payment certificate shall be deemed to be amended from seven (7) to twenty one(21) calendar days from receipt of contractors Tax invoice.
B300: Clause 31.10: The employer shall not pay compensatory interest on any amounts certified after practical completion.
B302: F:....................... V:......................... T:.............................
B304: Adjustments to the contract value (Clause 32.0) | C304: Item | D304: 1.00
B306: Where prices are submitted by the Contractor or Nominated/Selected Subcontractor during the progress of the works in respect of contract instructions or in regard to a claim under the terms of the contract and notwithstanding the fact that such prices may be used in an interim payment certificate, there is to be no presumption of acceptance. Should the Principal Agent wish to accept any such prices prior to the issue of the Final Certificate, it will be in writing.
B308: This is a fixed price contract and no adjustment to the contract value due to inflationary cost or other increases will be made
B310: F:....................... V:......................... T:.............................
B312: Recovery of expense and loss (Clause 33.0) | C312: Item | D312: 1.00
B314: F:....................... V:......................... T:.............................
B316: Final account and final payment (Clause 34.0) | C316: Item | D316: 1.00
B318: The Employer shall not pay any interest on amounts payable to the contractor for a hundred and twenty days (120) after the date of issue of the certificate of practical completion.
B320: Carried to Collection
B321: Bill No. 1
B322: Preliminaries
B324: The first sentence of Clause 34.10 shall be amended as follows:
B326: The Employer shall pay the Contractor the amount certified for payment in the Final Payment Certificate within twenty one (21) calendar days of the date of issue of the Final Payment Certificate.
B328: F:....................... V:......................... T:.............................
B330: Payment to other parties (Clause 35.0) | C330: Item | D330: 1.00
B332: F:....................... V:......................... T:.............................
B334: CANCELLATION
B336: Cancellation by employer - Contractor's default (Clause 36.0) | C336: Item | D336: 1.00
B338: Clause 36.3 is amended by the deletion of the words "ten (10) working days" and the substitution with the words "five (5) working days"
B340: F:....................... V:......................... T:.............................
B343: Cancellation by employer - Loss and damage (Clause 37.0) | C343: Item | D343: 1.00
B345: F:....................... V:......................... T:.............................
B347: Cancellation by contractor - employer's default (Clause 38.0) | C347: Item | D347: 1.00
B349: F:....................... V:......................... T:.............................
B351: Cancellation - cessation of the works (Clause 39.0) | C351: Item | D351: 1.00
B353: F:....................... V:......................... T:.............................
B355: Dispute settlement (Clause 40.0) | C355: Item | D355: 1.00
B357: F:....................... V:......................... T:.............................
B359: SUBSTITUTE PROVISIONS
B361: State clauses (Clause 41.0) | C361: Item | D361: 1.00
B363: F:....................... V:......................... T:.............................
B365: PRE-TENDER INFORMATION
B367: The schedule (Clause 42.0) | C367: Item | D367: 1.00
B369: F:....................... V:......................... T:.............................
B371: Information necessary for completion of those clauses contained in the schedule which are necessary for tender purposes is given hereunder
B373: CONTRACTING AND OTHER PARTIES
B375: Employer:
B377: ……………………………………………………………..
B379: Tel No:
B380: Fax No:
B382: Project Manager:
B384: ………………………………………
B386: Tel No:
B387: Fax No:
B389: Carried to Collection
B390: Bill No. 1
B391: Preliminaries
B393: Architect:
B395: …………………………………..
B397: Tel No:
B398: Fax No:
B400: Electrical Engineer:
B402: …………………………………….
B404: Tel No:
B405: Fax No:
B407: Quantity Surveyor:
B409: Tel No:
B410: Fax No:
B412: Civil Engineer:
... 2953 more rows

Sheet SNP Kitchen (hidden)
A2: Item | B2: Descriptions | C2: Unit | D2: Quantity | E2: Rate | F2: Amount
B3: BILL NO. 1
B5: FOUNDATIONS (ALL TRADES) (PROVISIONAL)
B7: Excavation in earth not exceeding 2m deep for:
A9: 1 | B9: Reducing levels under solid floors. | C9: m3 | D9: 10 | E9: R45.00 | F9: =D9*E9 -> R450.00
A11: 2 | B11: Trenches. | C11: m3 | D11: 26 | E11: R60.00 | F11: =D11*E11 -> R1,560.00
B13: Extra over trench and hole excavations in earth for excavation in:
A15: 3 | B15: Soft rock | C15: m3 | D15: 8 | E15: R250.00 | F15: =D15*E15 -> R2,000.00
A17: 4 | B17: Hard rock. | C17: m3 | D17: 10 | E17: R450.00 | F17: =D17*E17 -> R4,500.00
B19: Keeping excavations free of water:
A21: 5 | B21: Allow for keeping all excavations free of water. | C21: Item | D21: 1 | E21: R1,000.00 | F21: =D21*E21 -> R1,000.00
B23: Risk of collapse of excavations:
A25: 6 | B25: Vertical sides of excavation for trenches, etc., from
B26: ground level to not exceeding 1,5m deep. | C26: m2 | D26: 48 | E26: R10.00 | F26: =D26*E26 -> R480.00
B28: Extra only over all excavations for loading and carting away
A30: 7 | B30: Surplus spoil away from site (by volume as measured
B31: for excavation - Contractor to make allowance for increase in bulk | C31: m3 | D31: 10 | E31: R60.00 | F31: =D31*E31 -> R600.00
B33: Selected earth filling from the excavations deposited in
B34: layers not exceeding 150mm thick after compaction and
B35: compacted to a density of 95% Modified AASHTO
B36: maximum density:
A38: 8 | B38: In backfilling to foundations around foundation walls | C38: m3 | D38: 7 | E38: R65.00 | F38: =D38*E38 -> R455.00
B40: Selected granular G5 filling material supplied and
B41: carted onto the site by the Contractor and having a
B42: plasticity index of less than 12, deposited in layers not
B43: exceeding 150mm thick after compaction and
B44: compacted to a density of 95% Modified AASHTO
B45: maximum density:
A47: 9 | B47: In filling under solid floors. | C47: m3 | D47: 7 | E47: R455.00 | F47: =D47*E47 -> R3,185.00
B49: Selected granular G7 filling material supplied and
B50: carted onto the site by the Contractor and having a
B51: plasticity index of less than 12, deposited in layers not
B52: exceeding 150mm thick after compaction and
B53: compacted to a density of 93% Modified AASHTO
B54: maximum density:
A56: 12 | B56: In filling under solid floors. | C56: m3 | D56: 7 | E56: R355.00 | F56: =D56*E56 -> R2,485.00
B58: Selected coarse river sand filling material supplied and
B59: carted onto the site by the Contractor:
A61: 10 | B61: 50mm (Consolidated) layer of clean river sand well
B62: watered and rolled to a hard true and even surface
B63: under solid floors. | C63: m2 | D63: 50 | E63: R90.00 | F63: =D63*E63 -> R4,500.00
B66: Carried Forward | F66: =SUM(F3:F63) -> R21,215.00
B69: Brought Forward | F69: =F66 -> R21,215.00
B71: Compaction of ground surfaces:
A73: 11 | B73: Stabilize in-situ reduced levels by scarifying to a depth
B74: of 150mm and compacting to a density of 98% | C74: m2 | D74: 50 | E74: R60.00 | F74: =D74*E74 -> R3,000.00
B75: Modified AASHTO maximum density.
B77: Prescribed density tests on filling:
A79: 12 | B79: Allow for the execution of all prescribed density tests
B80: on filling, etc., as pointed out by the Principal Agent on | C80: No | D80: 4 | E80: R350.00 | F80: =D80*E80 -> R1,400.00
B81: site.
B83: Soil poisoning applied by a registered pest control
B84: company and guaranteed against termite infestation for
B85: five years:
A87: 13 | B87: Antproofing ground under solid foundations and to
B88: vertical sides of excavations with a solution of Aldrin
B89: or other approved emulsifiable concentrates | C89: m2 | D89: 50 | E89: R20.00 | F89: =D89*E89 -> R1,000.00
B90: complying with SABS 1164 and applied in accordance
B91: with SABS 0124.
A93: 14 | B93: Antproofing ground under solid floors ditto including
B94: raking out V-shaped channel 75mm wide against
B95: walls, etc., and thoroughly saturate with antproofing | C95: m2 | D95: 17 | E95: R20.00 | F95: =D95*E95 -> R340.00
B96: solution and fill in and tamp down.
B98: CONCRETE
B100: Unreinforced Concrete
B102: 15 MPa/19 mm concrete in:
A104: 15 | B104: In blinding to foundations to walls cast against
B105: excavated surfaces | C105: m3 | D105: 3 | E105: R1,100.00 | F105: =D105*E105 -> R3,300.00
B107: Reinforced Concrete
B109: 25 MPa/19 mm concrete in:
A111: 16 | B111: Foundations to walls cast against excavated surfaces | C111: m3 | D111: 8 | E111: R1,800.00 | F111: =D111*E111 -> R14,400.00
B113: CONCRETE TESTING
B115: Concrete test cubes:
A117: 17 | B117: Allow for all necessary concrete test cubes size 150 x
B118: 150 x 150mm cast from batches of concrete required
B119: for the entire contract as specified, made, stored,
B120: cured and tested in accordance with SABS Methods
B121: 861 and 863, including use and waste of approved | C121: No | D121: 4 | E121: R450.00 | F121: =D121*E121 -> R1,800.00
B122: cube moulds, transporting to an approved testing
B123: laboratory for testing, paying all charges and
B124: submitting reports to the Principal Agent.
B126: FORMWORK
B128: Formwork (use and waste) to concrete to:
A130: 18 | B130: Edges of foundation steppings not exceeding 300mm high | C130: m | D130: 28 | E130: R10.00 | F130: =D130*E130 -> R280.00
B133: Carried Forward | F133: =SUM(F69:F130) -> R46,735.00
B136: Brought Forward | F136: =F133 -> R46,735.00
B137: REINFORCEMENT
B139: Steel bar reinforcement to concrete:
A141: 19 | B141: Mild steel bars 6mm diameter in reinforcement to | C141: kg | D141: 288 | E141: R12.50 | F141: =D141*E141 -> R3,600.00
B142: foundations, etc.
A144: 20 | B144: High tensile steel bars 12mm diameter ditto | C144: kg | D144: 1008 | E144: R16.50 | F144: =D144*E144 -> R16,632.00
B146: BRICKWORK
B148: Brickwork of 'Corobrik NFX' extra hard burnt bricks
B149: (14MPa compressive strength) in Class I mortar:
A151: 21 | B151: Half brick wall. | C151: m2 | D151: 9 | E151: R300.00 | F151: =D151*E151 -> R2,700.00
A153: 22 | B153: One brick wall in English bond. | C153: m2 | D153: 20 | E153: R450.00 | F153: =D153*E153 -> R9,000.00
A155: 23 | B155: One brick wall of two half brick skins in stretcher bond (no wire ties) | C155: m2 | D155: 0 | E155: R450.00 | F155: =D155*E155 -> R0.00
B157: Brickwork Sundries
B159: Brickwork reinforcement:
A161: 24 | B161: High tensile steel fabric reinforcement 75mm wide to
B162: every course of brick walls lapped full widths at angles | C162: m | D162: =7.5*6 -> 45 | E162: R5.00 | F162: =D162*E162 -> R225.00
B163: and junctions and building in.
A165: 25 | B165: Ditto 150mm wide ditto. | C165: m | D165: 165 | E165: R7.00 | F165: =D165*E165 -> R1,155.00
B167: FACE BRICKWORK
B169: Facings
B171: Corobrik Firelight Satin FBX face bricks in stretcher
B172: bond, in class I cement mortar, pointed with square
B173: recessed horizontal and vertical joints (all brick skins to be
B174: bagged and sealed)
A176: 28 | B176: Extra over ordinary brickwork for facing in stretcher
B177: bond and pointing. | C177: m2 | D177: 5 | E177: R575.00 | F177: =D177*E177 -> R2,875.00
B197: Carried to Summary | F197: =SUM(F136:F195) -> R82,922.00
A203: Item | B203: Descriptions | C203: Unit | D203: Quantity | E203: Rate | F203: Amount
B204: BILL NO. 2
B206: CONCRETE, FORMWORK AND REINFORCEMENT
B208: VIBRATED REINFORCED CONCRETE
B210: 25MPa/19mm concrete in:
A212: 1 | B212: Surface beds laid in panels | C212: m3 | D212: 2 | E212: R1,800.00 | F212: =D212*E212 -> R3,600.00
A214: 2 | B214: Turndowns to edges of surface beds including
B215: additional excavations, filling in and ramming | C215: m3 | D215: 0.5 | E215: R1,800.00 | F215: =D215*E215 -> R900.00
B217: 25MPa/19mm concrete in:
A219: 3 | B219: Surface beds laid in panels | C219: m3 | D219: =50*0.1 -> 5 | E219: R1,800.00 | F219: =D219*E219 -> R9,000.00
A221: 4 | B221: In veranda and play area | C221: m3 | D221: 5 | E221: R1,800.00 | F221: =D221*E221 -> R9,000.00
A223: 5 | B223: In V drains | C223: m3 | D223: 3 | E223: R1,800.00 | F223: =D223*E223 -> R5,400.00
B225: CONCRETE TESTING
B227: Concrete testing:
A229: 6 | B229: Allow for all necessary concrete test cubes size 150 x
B230: 150 x 150mm cast from batches of concrete required
B231: for the entire contract as specified, made, stored,
B232: cured and tested in accordance with SABS Methods
B233: 861 and 863, including use and waste of approved | C233: No | D233: 12 | E233: R450.00 | F233: =D233*E233 -> R5,400.00
B234: cube moulds, transporting to an approved laboratory
B235: for testing, paying all charges and submitting reports
B236: to the Principal Agent
B238: CONCRETE SUNDRIES
B240: Finishing top of concrete to a non-slip finish obtained
B241: by brushing with a stiff bristle broom before the
B242: concrete has set:
A244: 7 | B244: Surface beds. | C244: m2 | D244: 50 | E244: R50.00 | F244: =D244*E244 -> R2,500.00
B246: FORMWORK
B248: Formwork (use and waste) to concrete to:
A250: 8 | B250: Edges, risers, ends and reveals not exceeding 300mm
B251: high or wide | C251: m | D251: 28 | E251: R10.00 | F251: =D251*E251 -> R280.00
B253: MOVEMENT JOINTS
B255: 10mm Bitumen impregnated insulation board
B256: expansion joint filler closely butt jointed at
B257: intersections including all cutting and waste and
B258: maintaining in position during concreting in:
A260: 9 | B260: Expansion joint between abutting edges of concrete
B261: surface beds not exceeding 300mm high | C261: m | D261: 24 | E261: R10.00 | F261: =D261*E261 -> R240.00
A263: 10 | B263: Expansion joint between abutting edges of concrete
B264: surface beds and brickwork not exceeding 300mm | C264: m | D264: 24 | E264: R10.00 | F264: =D264*E264 -> R240.00
B265: high.
B267: Carried Forward | F267: =SUM(F211:F264) -> R36,560.00
B270: Brought Forward | F270: =F267 -> R36,560.00
B271: REINFORCEMENT
B273: Steel fabric reinforcement to concrete
A275: 11 | B275: Welded high tensile steel square mesh fabric
B276: reinforcement reference 617 (mass 6,17kg/m2) to
B277: surface beds laid in panels and lapped 200mm at
B278: sides and ends including all cutting and waste | C278: m2 | D278: 50 | E278: R60.00 | F278: =D278*E278 -> R3,000.00
B279: (measured nett).
B332: Carried to Summary | F332: =SUM(F270:F318) -> R39,560.00
A337: Item | B337: Descriptions | C337: Unit | D337: Quantity | E337: Rate | F337: Amount
B338: BILL NO. 3
B340: MASONRY
B342: BRICKWORK IN CEMENT MORTAR
A344: 1 | B344: Half brick wall. | C344: m2 | D344: 20 | E344: R300.00 | F344: =D344*E344 -> R6,000.00
A346: 2 | B346: Half brick beamfilling | C346: m2 | D346: 4 | E346: R300.00 | F346: =D346*E346 -> R1,200.00
A348: 3 | B348: Half brick wall above wall plate level inside roof space | C348: m2 | D348: 9 | E348: R300.00 | F348: =D348*E348 -> R2,700.00
A350: 4 | B350: One brick wall of two half brick skins in stretcher bond
B351: (no wire ties). | C351: m2 | D351: 12 | E351: R450.00 | F351: =D351*E351 -> R5,400.00
A353: 5 | B353: One brick wall of two half brick skins in stretcher bond
B354: above wall plate level inside roof space (no wire ties). | C354: m2 | D354: 8 | E354: R450.00 | F354: =D354*E354 -> R3,600.00
A356: 6 | B356: One brick wall of two half brick skins in stretcher bond
B357: bagged and sealed (no wire ties). | C357: m2 | D357: 72 | E357: R450.00 | F357: =D357*E357 -> R32,400.00
B359: Brickwork Sundries
B361: Flashings, etc:
A363: 7 | B363: Cut groove in brickwork for turn-in of metal flashings and
B364: point with an approved polysulphide joint sealant | C364: m | D364: 1 | E364: R10.00 | F364: =D364*E364 -> R10.00
B366: Brickwork reinforcement
A368: 8 | B368: High tensile steel fabric reinforcement 75mm wide to
B369: brick walls lapped full width at angles and junctions and | C369: m | D369: 68 | E369: R5.00 | F369: =D369*E369 -> R340.00
B370: building in (measured nett).
A372: 9 | B372: High tensile steel fabric reinforcement 150mm wide to
B373: brick walls lapped full width at angles and junctions and
B374: building in (measured nett). | C374: m | D374: 248 | E374: R7.00 | F374: =D374*E374 -> R1,736.00
B376: Galvanised hoop iron cramps, ties, etc:
A378: 10 | B378: 1,2 x 25mm Galvanised iron articulation anchor 365mm
B379: girth bent once in centre and built into brickwork at | C379: No | D379: 14 | E379: R20.00 | F379: =D379*E379 -> R280.00
B380: 425mm centres vertically
A382: 11 | B382: 1,2 x 25mm Galvanised iron articulation anchor 665mm
B383: girth ditto | C383: No | D383: 14 | E383: R20.00 | F383: =D383*E383 -> R280.00
A385: 12 | B385: 2 x 38mm Galvanised hoop iron roof truss anchor
B386: 1620mm girth with one end bent around timber roof truss
B387: and spiked to timber wall plate and the other end
B388: wrapped around and including 10mm diameter mild steel | C388: No | D388: 14 | E388: R30.00 | F388: =D388*E388 -> R420.00
B389: rod 150mm long and built six courses deep into top of
B390: brick wall in cement mortar.
B392: Air bricks, etc:
... 464 more rows

Sheet Borehole (hidden)
A1: Item | B1: Description | C1: Unit | D1: Qty | E1: Rate | F1: Water & Sanitation | G1: Maintenance
B3: BOREHOLE
B5: Feasibility Study
B7: Visit to the construction site, establishthe availability of reliable power supply, take the site coordinates | C7: No | D7: 1 | E7: 2,000.00 | F7: =D7*E7 -> 2,000.00
B9: Sighting
B11: Preparation of Desktop report to locate possible underground water, exploration exercise report | C11: No | D11: 1 | E11: 15,000.00 | F11: =D11*E11 -> 15,000.00
B13: Locating of the position to drill for underground water | C13: No | D13: 1 | E13: 3,500.00 | F13: =D13*E13 -> 3,500.00
B15: Establishment
B17: Site establishment | C17: Item | D17: 1 | E17: 5,000.00 | F17: =D17*E17 -> 5,000.00
B19: Setting up | C19: No | D19: 1 | E19: 2,500.00 | F19: =D19*E19 -> 2,500.00
B21: Drilling
B23: 216mm rotary percussion 0-25 | C23: m | D23: 25 | E23: 250.00 | F23: =D23*E23 -> 6,250.00
B25: 165mm rotary percussion 0-100 | C25: m | D25: 75 | E25: 350.00 | F25: 26,250.00
B27: 165mm rotary percussion100-150 | C27: m | D27: 50 | E27: 375.00 | F27: 18,750.00
B29: Steel Casing
B31: Supply and Install 6.5X0.3mm casing, say 20meters | C31: No | D31: 5 | E31: 300.00 | F31: =D31*E31 -> 1,500.00
B33: Development
B35: Estimate yield, constant discharge test & deflowering of borehole | C35: Hr | D35: 24 | E35: 625.00 | F35: =D35*E35 -> 15,000.00
B37: Sanitary Seal
B39: Sanitary seal around casing | C39: Each | D39: 1 | E39: 1,200.00 | F39: =D39*E39 -> 1,200.00
B41: Capping
B43: Cut, bend and weld casing closed | C43: Each | D43: 1 | E43: 350.00 | F43: =D43*E43 -> 350.00
B45: De-establishment
B47: Borehole marking | C47: No | D47: 1 | E47: 500.00 | F47: =D47*E47 -> 500.00
B49: Gravel parking | C49: m3 | D49: 3 | E49: 450.00 | F49: 1,350.00
B51: Construction of concrete plinth | C51: m3 | D51: 2 | E51: 2,000.00 | F51: 4,000.00
B53: Dissemble setting out | C53: Item | D53: 1 | E53: 2,500.00 | F53: 2,500.00
B55: Water Quality Test
B57: Take three water samples to Laboratory for Bacterial and for chemical presence (takes 5 days) | C57: No | D57: 1 | E57: 4,500.00 | F57: =D57*E57 -> 4,500.00
B59: Ironmongery
B61: Construction of the Galvanized Tank Stand 4.5 M, inclusive of Manufacture, delivery to site, construction of foundations, installation and issuing of the COC 10,000 litres | C61: No | D61: 1 | E61: 60,000.00 | F61: =D61*E61 -> 60,000.00
B63: Plumbing
B65: Installation of submersible pump, SVM 3038 Pump, 1.1 Kw 230V motor, including the subtronic controlbox, 82A2 Joint Kit, 16mm 4 core submersible cable, 32mm Baseplate | C65: No | D65: 1 | E65: 25,000.00 | F65: =D65*E65 -> 25,000.00
B67: Reticulation trenching from the borehole to the school reservoir , distance not greater than 300meters, pipe size unknown but we shall use 32mm | C67: m | D67: 300 | E67: 15.00 | F67: =D67*E67 -> 4,500.00
B69: Reticulation to the School Kitchen and the Drinking Fountain using the 32mm HDPE pipe,distance not greater than 300meters (each come in 100m) | C69: No | D69: 1 | E69: 1,500.00 | F69: 1,500.00
B71: Installation of 10 000l plastic Tank | C71: No | D71: 1 | E71: 12,000.00 | F71: 12,000.00
B73: Electrical Works
B75: Cable trenching to the nearest electrical supply point, for intermediate material distance not greater than 100 meters, 2,5mm 4 core cable | C75: m | D75: 100 | E75: 75.00 | F75: =D75*E75 -> 7,500.00
B77: Fitment of the circuit board and circuit breakers | C77: Provisional | D77: 1 | E77: 5,500.00 | F77: =D77*E77 -> 5,500.00
B79: Masonry
B81: Construction of Generator Room | C81: Provisional | D81: 1 | E81: 12,000.00 | F81: =D81*E81 -> 12,000.00
B83: Travelling
B85: Traveling and Tollgates | C85: No | D85: 2 | E85: 3,650.00 | F85: =D85*E85 -> 7,300.00
B87: Labour
B89: Labour rate for period of 2 days | C89: No | D89: 12 | E89: 480.00 | F89: =D89*E89 -> 5,760.00
B91: De-establishment
B93: Moving off the construction site | C93: Item | D93: 1 | E93: 2,500.00 | F93: =D93*E93 -> 2,500.00
B97: To Collection | F97: =SUM(F7:F96) -> R 253,710.00 | G97: =SUM(G9:G96) -> R 0.00

Sheet New (hidden)
A1: Item | B1: Description | C1: Unit | D1: Qty | E1: Rate | F1: Amount
A3: A | B3: PRELIMINARY AND GENERAL
B5: NOTES
B7: BUILDING AGREEMENT AND PRELIMINARIES
B8: The JBCC Series 2000 Principal Building Agreement (July 2007
B9: edition) prepared by the Joint Building Contract Committee
B10: shall be the applicable building agreement, amended as
B11: hereinafter described The ASAQS Preliminaries (November
B12: 2007 edition) published by the Association of South African
B13: Quantity Surveyors for use with the said JBCC Principal
B14: Building Agreement shall be deemed to be incorporated in
B15: these bills of quantities Contractors are referred to the
B16: abovementioned documents for the full intent and meaning of
B17: each clause thereof
B19: These clauses are hereinafter referred to by clause number
B20: and heading only. Where standard clauses or alternatives are
B21: not entirely applicable to this contract such modifications,
B22: corrections or supplements as will apply are given under each
B23: relevant clause heading and such modifications, corrections or
B24: supplements shall take precedence notwithstanding anything
B25: contrary contained in the abovementioned documents
B26: Where any item is not relevant to this specific contract such
B27: item is marked N/A, signifying "not applicable"
B30: PREAMBLES FOR TRADES
B32: The Model Preambles for Trades (1999 edition) as published
B33: by the Association of South African Quantity Surveyors shall be
B34: deemed to be incorporated in these bills of quantities and no
B35: claims arising from brevity of description of items fully
B36: described in the said Model Preambles will be entertained
B37: Supplementary preambles are incorporated in these bills of
B38: quantities to satisfy the requirements of this project Such
B39: supplementary preambles shall take precedence over the
B40: provisions of the said Model Preambles
B41: The contractor's prices for all items throughout these bills of
B42: quantities must take account of and include for all of the
B43: obligations, requirements and specifications given in the said
B44: Model Preambles and in any supplementary preambles
B46: Carried Forward
B47: Brought Forward
B49: CPAP WORK GROUP
B51: Unless otherwise stated all items in this bill will be Work Group
B52: PRICING OF PRELIMINARIES
B53: Should the contractor select Option A in terms of subclause
B54: 32.1 in the Contract Data - Contractor to Employer (CE) for the
B55: purpose of adjustment of these preliminaries, the amount
B56: entered into the amount column in these preliminaries is to be
B57: divided into one or more of the three categories provided
B58: namely Fixed (F), Value Related (V) and Time Related (T)
B60: SECTION A - PRINCIPAL BUILDING
B62: AGREEMENT
B64: Definitions
A66: 1 | B66: Clause 1.0 - Definitions and interpretation | C66: Item | D66: 1
B68: Objective and preparations
A70: 2 | B70: Clause 2.0 - Offer acceptance and performance obligations | C70: Item | D70: 1
A71: 3 | B71: Clause 3.0 - Documents | C71: Item | D71: 1
A72: 4 | B72: Clause 4.0 - Design responsibility | C72: Item | D72: 1
A73: 5 | B73: Clause 5.0 - Employer's agents | C73: Item | D73: 1
A74: 6 | B74: Clause 6.0 - Contractor's site representative | C74: Item | D74: 1
A75: 7 | B75: Clause 7.0 - Compliance with laws and regulations | C75: Item | D75: 1
A76: 8 | B76: Clause 8.0 - Works risk | C76: Item | D76: 1
A77: 9 | B77: Clause 9.0 - Indemnities | C77: Item | D77: 1
A78: 10 | B78: Clause 10.0 - General insurances | C78: Item | D78: 1
A79: 11 | B79: Clause 11.0 - Special insurances | C79: Item | D79: 1
A80: 12 | B80: Clause 12.0 - Effecting insurances | C80: Item | D80: 1
A81: 13 | B81: Clause 13.0 - Assignment | C81: Item | D81: 1
A82: 14 | B82: Clause 14.0 - Security | C82: Item | D82: 1
B84: Execution
A86: 15 | B86: Clause 15.0 -Preparation for and execution of the works | C86: Item | D86: 1
A87: 16 | B87: Clause 16.0 - Site and access | C87: Item | D87: 1
A88: 17 | B88: Clause 16.7 - Known services | C88: Item | D88: 1
A89: 18 | B89: Clause 16.8 - Protection of trees | C89: Item | D89: 1
A90: 19 | B90: Clause 17.0 - Contract instructions | C90: Item | D90: 1
B91: Carried Forward
B92: Brought Forward
A94: 20 | B94: Clause 18.0 - Setting out of the works | C94: Item | D94: 1
B96: The contractor shall notify the principal agent if any
B97: encroachments of adjoining foundations, buildings, structures,
B98: pavements, boundaries, etc exist in order that the necessary
B99: arrangements may be made for the rectification of any such
B100: encroachments
A102: 21 | B102: Clause 19.0 - Temporary works and plant | C102: Item | D102: 1
A104: 22 | B104: Subclause 19.1.1 - Enclosure of the works | C104: Item | D104: 1
A106: 23 | B106: Subclause 19.1.2 - Office accommodation | C106: Item | D106: 1
A108: 24 | B108: Clause 19.2 - Notice boards | C108: Item | D108: 1
A110: 25 | B110: Clause 20.0 - Nominated subcontractors | C110: Item | D110: 1
A112: 26 | B112: Clause 21.0 - Selected subcontractors | C112: Item | D112: 1
A114: 27 | B114: Clause 22.0 - Employer's direct contractors | C114: Item | D114: 1
A116: 28 | B116: Clause 23.0 - Contractor's domestic subcontractors | C116: Item | D116: 1
B118: Completion
A120: 29 | B120: Clause 24.0 - Practical completion | C120: Item | D120: 1
A121: 30 | B121: Clause 25.0 - Works completion | C121: Item | D121: 1
A122: 31 | B122: Clause 26.0 - Final completion | C122: Item | D122: 1
A123: 32 | B123: Clause 27.0 - Latent defects liability period | C123: Item | D123: 1
A124: 33 | B124: Clause 28.0 - Sectional completion | C124: Item | D124: 1
A126: 34 | B126: Clause 29.0 - Revision of date for practical completion | C126: Item | D126: 1
B127: The removal and replacement of materials and/or workmanship
B128: which do not conform to specification or drawing shall not
B129: constitute grounds for the extension of the construction period
B130: nor for the adjustment of the contract value (Clause 29.3)
A132: 35 | B132: Clause 30.0 - Penalty for late or non-completion | C132: Item | D132: 1
B134: Payment
A136: 36 | B136: Clause 31.0 - Interim payment | C136: Item | D136: 1
B137: Materials and goods stored off site shall not be included in the
B138: amount authorised for payment unless Advanced Payment
B139: Guarantee provided
A140: 37 | B140: Clause 32.0 - Adjustment to the contract value | C140: Item | D140: 1
A141: 38 | B141: Clause 33.0 - Recovery of expense and loss | C141: Item | D141: 1
A142: 39 | B142: Clause 34.0 - Final account and final payment | C142: Item | D142: 1
A143: 40 | B143: Clause 35.0 - Payment to other parties | C143: Item | D143: 1
B144: Carried Forward
B145: Brought Forward
B147: Termination
A149: 41 | B149: Clause 37.0 - Termination by employer - loss and damage | C149: Item | D149: 1
A151: 42 | B151: Clause 38.0 - Termination by contractor - employer's default | C151: Item | D151: 1
A153: 43 | B153: Clause 39.0 - Termination - cessation of the works | C153: Item | D153: 1
A154: 44 | B154: Clause 40.0 - Settlement of disputes | C154: Item | D154: 1
A155: 45 | B155: Clause 41.0 - Post tender provisions | C155: Item | D155: 1
B157: The required post tender information shall be inserted in the
B158: post tender provisions after consultation with the contractor
A160: 46 | B160: Clause 42 0 - Contractual agreement | C160: Item | D160: 1
B162: The required information of the contracting parties and the
B163: amount of the accepted contract sum shall be inserted in the
B164: contractual agreement for signature of the agreement by the
B165: contracting parties
B167: SECTION B - PRELIMINARIES
B169: Definitions and interpretation
A171: 47 | B171: Clause 1.0 - Definitions and interpretation | C171: Item | D171: 1
A172: 48 | B172: Clause 36.0 - Termination by employer - contractor's default | C172: Item | D172: 1
B174: Documents
A176: 49 | B176: Clause 2.1 - Checking of documents | C176: Item | D176: 1
A177: 50 | B177: Clause 2.2 - Provisional bills of quantities | C177: Item | D177: 1
B179: Previous work and adjoining properties
A181: 51 | B181: Clause 3.1 - Previous work - dimensional accuracy | C181: Item | D181: 1
A182: 52 | B182: Clause 2.3 - Availability of construction documentation | C182: Item | D182: 1
B184: The budgetary allowances and selected subcontract amounts
B185: allocated for subsequent trades included in this document will
B186: be separately procured, based on selected subcontractors
B187: during the construction period
A189: 53 | B189: Clause 3.2 - Previous work - defects | C189: Item | D189: 1
A190: 54 | B190: Clause 3.3 - Inspection of adjoining properties | C190: Item | D190: 1
B192: Samples, shop drawings and manufacturer's instructions
A194: 55 | B194: Clause 4.1 - Samples of materials | C194: Item | D194: 1
A195: 56 | B195: Clause 4.2 - Workmanship samples | C195: Item | D195: 1
A196: 57 | B196: Clause 4.3 - Shop drawings | C196: Item | D196: 1
A197: 58 | B197: Clause 4.4 - Compliance with manufacturer's instructions | C197: Item | D197: 1
B198: Carried Forward
B199: Brought Forward
B201: Deposits and fees
A203: 59 | B203: Clause 5.1 - Deposits and fees | C203: Item | D203: 1
B205: Temporary services
A207: 60 | B207: Clause 6.1 - Water | C207: Item | D207: 1
A209: 61 | B209: Clause 6.2 - Electricity | C209: Item | D209: 1
A211: 62 | B211: Clause 6.3 - Telecommunication facilities | C211: Item | D211: 1
A213: 63 | B213: Clause 6.4 - Ablution facilities | C213: Item | D213: 1
B215: Prime cost amounts
A217: 64 | B217: Clause 7.1 - Responsibility for prime cost amounts | C217: Item | D217: 1
B219: Special attendance on nls subcontractors
A221: 65 | B221: Clause 8.1 - Special attendance | C221: Item | D221: 1
B223: General
A225: 66 | B225: Clause 9.1 - Protection of the works | C225: Item | D225: 1
A226: 67 | B226: Clause 9.2 -Protection/isolation of existing/sectionally occupied | C226: Item | D226: 1
B227: works
A228: 68 | B228: Clause 9.3 - Security of the works | C228: Item | D228: 1
A229: 69 | B229: Clause 9.4 - Notice before covering work | C229: Item | D229: 1
A230: 70 | B230: Clause 9.5 - Disturbance | C230: Item | D230: 1
A231: 71 | B231: Clause 9.6 - Environmental disturbance | C231: Item | D231: 1
A232: 72 | B232: Clause 9.7 - Works cleaning and clearing (please price | C232: Item | D232: 1
B233: according to assessment of the site at the site inspection)
A234: 73 | B234: Clause 9.8 - Vermin | C234: Item | D234: 1
A235: 74 | B235: Clause 9.9 - Overhand work | C235: Item | D235: 1
B237: Schedule of variables
B239: Information necessary for elections and completion of those
B240: clauses contained in the schedule which are necessary for
B241: tender purposes is given hereunder Where no information is
B242: given it shall mean that no specific requirements are expected
B243: or that the clause is not relevant to this specific contract
B245: 10.1 - Provisional bills of quantities [clause 2.2]
B246: The quantities are provisional Yes
B248: 10.2 - Availability of construction documentation [clause 2 3]
B249: Construction documentation is complete No
B251: 10.3 - Previous work - dimensional accuracy [clause 3.1]
B252: Carried Forward
B253: Brought Forward
B255: 10.4 - Previous work - defects [clause 32]
B256: 10.5 - Inspection of adjoining properties [clause 33]
B257: 10.6 - Water [clause 7.2]
B259: Option A (by contractor) yes
B260: Option B (by employer - free of charge) no
B261: Option C (by employer - metered) no
B263: 10.7 - Electricity [clause 7.3]
B265: Option A (by contractor) yes
B266: Option B (by employer - free of charge) no
B267: Option C (by employer - metered) no
B269: 10.8 - Telecommunications [clause 7.4]
B270: Telephone yes
B271: Facsimile no
B272: E-mail no
B274: 10.9 - Ablution facilities [clause 7 5]
B275: Option A (by contractor) yes
B276: Option B (by employer) no
... 531 more rows

Sheet Combined (hidden)
A1: Item | B1: Description | C1: Unit | D1: Qty | E1: Rate | F1: Storm Damage | G1: Maintenance
B3: BLOCK 1: 3 CLASSROOM
B4: Demolition
B5: Temporary barriers, screens, etc including removal
B7: Existing hoarding with poles | C7: m | D7: 32 | E7: R 80.00 | F7: =E7*D7 -> R 2,560.00
B9: Existing shadecloth hoarding 1,8m high on Bonnox | C9: m | D9: 32 | E9: R 150.00 | F9: =E9*D9 -> R 4,800.00
B10: fence fixed to gumpoles at suitable centres and refix in new
B11: position all to the Architect's approval
B13: Double gate size 6000 x 1800mm high formed of suitable | C13: No | D13: 1 | E13: R 1,600.00 | F13: =E13*D13 -> R 1,600.00
B14: tubular steel frame filled in with Bonnox fencing and covered
B15: with shadecloth including all necessary gate posts, locking
B16: mechanism, etc
B18: Breaking down and removing brickwork etc
B20: One brick walls in parapet | C20: m² | D20: 5 | E20: R 380.00 | F20: =E20*D20 -> R 1,900.00
B22: One brick walls in beam filling | C22: m² | D22: =(32*0.45*2)+(0.5*1.8*2) -> 30.6 | E22: R 380.00 | F22: =E22*D22 -> R 11,628.00
B24: 229 x 152mm Terra-cotta vermin proof air brick including making good surface to | C24: No | D24: 8 | E24: R 100.00 | F24: =E24*D24 -> R 800.00
B25: receive new (new air brick elsewhere measured)
B27: Breaking down and removing concrete, etc
B29: 25mm screeds (varendas, external steps, etc) and prepare surface to receive new | C29: m² | D29: 67 | E29: R 120.00 | F29: =E29*D29 -> R 8,040.00
B31: REMOVAL OF EXISTING WORK
B33: Taking down and removing off site
B35: 5000litres concrete water tanks including grubbing up bases, etc | C35: No | D35: 2 | E35: R 3,000.00 | F35: =E35*D35 -> R 6,000.00
B37: Taking down and removing roofs, floors, panelling, ceilings, partitions, etc
B39: Metal roof covering including fascias, bargeboards and rainwater | C39: m2 | D39: =7.3*32 -> 234 | E39: R 50.00 | F39: =E39*D39 -> R 11,680.00
B40: goods and dispose off as per the SHE regulations.
B42: Taking out and removing doors, windows, etc from brickwork and making good
B43: surfaces to receive new
B45: Timber door 813 x 2032mm high | C45: No | D45: 4 | E45: R 50.00 | F45: =E45*D45 -> R 200.00
B47: Taking out and removing joinery fittings etc
B49: Timber cupboard comprising door size 900 x 1800mm high with a timber frame, | C49: No | D49: 3 | E49: R 50.00 | F49: =E49*D49 -> R 150.00
B50: shelves, etc and making good surfaces to receive new
B52: Greenboard 2400 x 1140mm high | C52: No | D52: 3 | E52: R 50.00 | F52: =E52*D52 -> R 150.00
B54: Roof trusses including purlins | C54: No | D54: 30 | E54: R 50.00 | F54: =E54*D54 -> R 1,500.00 | K54: =30/1.2 -> 25
B56: Fascia boards | C56: m | D56: =32*2 -> 64 | E56: R 10.00 | F56: =E56*D56 -> R 640.00
B58: Roof gutters | C58: m | D58: 64 | E58: R 10.00 | F58: =E58*D58 -> R 640.00
B60: Downpipes | C60: m | D60: 25 | E60: R 10.00 | F60: =E60*D60 -> R 250.00
B62: Taking out and removing ironmongery
B64: Mortice lock and striking plate from timber door and steel frame | C64: No | D64: 3 | E64: R 50.00 | F64: =E64*D64 -> R 150.00
B66: Stays, latches, handles, etc from window steel frame | C66: No | D66: 3 | E66: R 50.00 | F66: =E66*D66 -> R 150.00
B68: PREPARATORY WORK TO EXISTING SURFACES
B70: Chipping of screed in floors to recieve new screed. | C70: m² | D70: =7.3*32 -> 234 | E70: R 50.00 | F70: =E70*D70 -> R 11,680.00
B72: Cleaning walls to recieve paint. | C72: m² | D72: =((32+7.3)*2)*3.1+(7.3*2.9*2*3)+((32+7.3)*2)*3.1 -> 614 | E72: R 20.00 | F72: =E72*D72 -> R 12,286.80
B74: Cleaning and removing broken glazing, putty and paint to window frames | C74: m² | D74: =D502 -> 22 | E74: R 20.00 | F74: =E74*D74 -> R 440.00
B76: To Collection | F76: =SUM(F7:F75) -> R 77,244.80 | G76: =SUM(G5:G75) -> R 0.00
B78: NEW WORKS
B80: EARTHWORKS
B82: EXCAVATIONS
B84: Excavation in earth not exceeding 2m deep
B85: Open face excavation to expose foundations for inspection and underpinning | C85: m3 | D85: =32*1.8*0.9*2*2+(0.6) -> 207.96 | E85: R 50.00 | F85: =E85*D85 -> R 10,398.00
B87: Extra over trench and hole excavations in earth for
B88: excavation in
B89: Soft rock | C89: m3 | D89: 8 | E89: R 150.00 | F89: R 1,200.00
B91: Hard rock | C91: m3 | D91: 3 | E91: R 250.00 | F91: R 750.00
B93: Extra over all excavations for carting away
B94: Surplus material from excavations and/or stock piles on site to
B95: a dumping site to be located by the contractor | C95: m3 | D95: 208 | E95: R 50.00 | F95: R 10,400.00
B97: Risk of collapse of excavations
B98: Sides of trench and hole excavations not exceeding 1,5m deep | C98: m2 | D98: 100 | E98: R 45.00 | F98: =E98*D98 -> R 4,500.00
B100: Keeping excavations free of all water other than subterranean
B101: water | C101: Item | D101: 1 | E101: R 600.00 | F101: R 600.00
B103: FILLING ETC
B105: Earth filling supplied by the contractor, compacted to 95%
B106: Mod AASHTO density
B108: Under floors, steps, pavings, etc | C108: m3 | D108: 208 | E108: R 350.00 | F108: R 72,800.00
B110: Backfilling to trenches, holes, etc | C110: m3 | D110: 8 | E110: R 350.00 | F110: R 2,800.00
B112: Coarse river sand filling compacted to a density of at least
B113: 95% Mod. AASHTO density
B114: Under floors etc | C114: m3 | D114: 72 | E114: R 350.00 | F114: R 25,200.00
B116: Compaction of surfaces
B117: Compaction of ground surface under floors etc including
B118: scarifying for a depth of 150mm, breaking down oversize
B119: material, adding suitable material where necessary and
B120: compacting to 95% Mod AASHTO density | C120: m2 | D120: =(32*2*2)+(7.3*2)+0.4 -> 143 | E120: R 45.00 | F120: R 6,435.00
B122: SOIL POISONING
B123: Soil insecticide
B125: Soil Poisoning: Under floors etc, including forming and
B126: poisoning shallow furrows against foundation walls etc, filling in
B127: furrows and ramming | C127: m2 | D127: 143 | E127: R 20.00 | F127: R 2,860.00
B129: To bottoms and sides of trenches etc | C129: m2 | D129: 143 | E129: R 20.00 | F129: R 2,860.00
B131: To Collection | F131: =SUM(F82:F130) -> R 140,803.00
B134: CONCRETE, FORMWORK
B135: AND REINFORCEMENT
B137: 20Mpa/19mm concrete
B139: Verandah floor cast in panels of 1850 centres, with controlled
B140: joints every 7400 centres | C140: m3 | D140: =32*2*0.15 -> 9.6 | E140: R 1,800.00 | F140: R 17,280.00
B142: Concrete aprons cast in panels, laid to fall in 1:200, with control
B143: joints filled with polysulphide sealant, every 3000mm centres | C143: m3 | D143: 5 | E143: R 1,800.00 | F143: R 9,000.00
B145: REINFORCED CONCRETE CAST AGAINST
B146: EXCAVATED SURFACES
B148: 25MPa/20mm concrete
B150: 25 Mpa: Strip footings | C150: m3 | D150: 2 | E150: R 1,800.00 | F150: R 3,600.00
B152: 25 Mpa: Pile Caps | C152: m3 | D152: =0.65*0.65*0.65*64*2 -> 35.152 | E152: R 1,800.00 | F152: =E152*D152 -> R 63,273.60
B154: TEST BLOCKS
B155: Making and testing of three 150 x 150 x 150mm concrete
B156: strength test cubes | C156: No | D156: 4 | E156: R 150.00 | F156: R 600.00
B158: CONCRETE SUNDRIES
B160: Finishing top surfaces of concrete to a Class U2 wood
B161: float finish
B163: Surface beds, slabs, etc | C163: m2 | D163: =32*2 -> 64 | E163: R 45.00 | F163: =E163*D163 -> R 2,880.00
B165: Rough formwork to sides
B167: To sides n.e. 300mm | C167: m2 | D167: 64 | E167: R 65.00 | F167: R 4,160.00
B169: MOVEMENT JOINTS ETC
B171: Expansion joints with softboard between vertical concrete
B172: surfaces
B174: 15mm Joints not exceeding 300mm high or wide | C174: m | D174: =2*6 -> 12 | E174: R 15.00 | F174: R 180.00
B176: Expansion joints with bitumen-impregnated softboard
B177: between vertical concrete and brickwork surfaces
B179: 10mm Isolation Joints not exceeding 300mm high or wide | C179: m | D179: 12 | E179: R 15.00 | F179: R 180.00
B181: Saw cut joints
B182: 50 x 3mm Saw cut joints in top of concrete | C182: m | D182: 12 | E182: R 15.00 | F182: R 180.00
B184: REINFORCEMENT (PROVISIONAL) (CPAP Work
B185: Group 114)
B187: Mild steel reinforcement to structural concrete work
B189: 12mm Diameter bars | C189: t | D189: 1 | E189: R 13,000.00 | F189: =E189*D189 -> R 13,000.00
B191: 10mm Diameter bars | C191: t | D191: 0.5 | E191: R 13,000.00 | F191: R 6,500.00
B193: 8mm Diameter bars | C193: t | D193: 0.5 | E193: R 13,000.00 | F193: R 6,500.00
B195: High tensile steel reinforcement to structural concrete
B196: work
B197: 25mm Diameter bars | C197: t | D197: 0.5 | E197: R 13,000.00 | F197: R 6,500.00
B199: Fabric reinforcement
B201: Type 193 fabric reinforcement in concrete surface beds, slabs, | C201: m2 | D201: 64 | E201: R 145.00 | F201: R 9,280.00
B202: etc
B203: To Collection | F203: =SUM(F139:F202) -> R 143,113.60
B205: PILING
B207: Precast concrete piles including reinforcement, couplings, all including driving
B208: to required set, grouting, ground water treatment, rock shoe, shafts, carting away
B209: displaced soil, bore tests, boring, temporary casing, casing, formwork, etc
B210: completely to Engineer's Instructions. Contractor to determine/recommend
B211: most suitable methodology upon thorough site investigations and exposing
B212: existing foundations.
B214: 450mm Diameter piles driven to existing bedrock approximately not exceeding
B215: 10m deep below ground level through all classes of strata to the required
B216: set in 35MPa reinforced concrete | C216: No | D216: 64 | E216: R 2,500.00 | F216: =E216*D216 -> R 160,000.00
B218: Drilling in strata of a more difficult character | C218: No | D218: 64 | E218: R 2,500.00 | F218: =E218*D218 -> R 160,000.00
B220: EXPOSING PILES FOR INSPECTION
B222: Exposing pile for inspection including excavation 2m deep and backfilling | C222: No | D222: 64 | E222: R 180.00 | F222: =E222*D222 -> R 11,520.00
B224: Exposing pile for inspection including excavation 4m deep and backfilling compacted to 98% MOD AASHTO density | C224: No | D224: 64 | E224: R 300.00 | F224: =E224*D224 -> R 19,200.00
B226: TRIMMING ETC
B228: Stripping back head of concrete pile for a height to a minimum of 450mm to
B229: expose reinforcement including trimming to defined level and bending reinforcement
B230: as necessary for casting into pile cap
B232: 450mm Diameter pile | C232: No | D232: 64 | E232: R 300.00 | F232: =E232*D232 -> R 19,200.00
B234: Cutting off and removing excess length of precast concrete pile as necessary
B235: including stripping back for a height not exceeding ?mm to expose reinforcement,
B236: trimming to defined level and bending reinforcement as necessary for casting
B237: into pile cap
B239: 450mm Diameter pile | C239: No | D239: 64 | E239: R 300.00 | F239: =E239*D239 -> R 19,200.00
B241: TESTING
B242: Transporting and establishment on site of necessary testing plant for the execution of the work and removal thereof on completion | C242: Item | D242: 1 | E242: R 90,000.00 | F242: =E242*D242 -> R 90,000.00
B244: Testing all piles, maximum load to be determinerd by the Engineer. | C244: No | D244: 1 | E244: R 10,000.00 | F244: =E244*D244 -> R 10,000.00
B246: Installing 450mm diameter pile to a depth not exceeding 10m below ground level | C246: No | D246: 1 | E246: R 20,000.00 | F246: =E246*D246 -> R 20,000.00
B247: and testing to a maximum load determined by the Engineer.
B249: To Collection | F249: =SUM(F211:F248) -> R 509,120.00 | G249: =SUM(G211:G248) -> R 0.00
B251: MASONRY
B253: SUPERSTRUCTURE
B255: Brickwork of NFP bricks in class II mortar including
B256: galvanised crimp wire wall ties ( 7 per m2 laid staggered)
B258: Half brick walls in beamfilling | C258: m2 | D258: 31 | E258: R 380.00 | F258: =E258*D258 -> R 11,780.00
B259: One brick walls | C259: m2 | D259: =(32*0.2*2)+(0.5*7.3*1.8*2)+0.06 -> 26 | E259: R 480.00 | F259: =E259*D259 -> R 12,480.00
B261: BRICKWORK SUNDRIES
B263: Bagging of 1:3 cement and sand mixture
B265: 75mm Wide Brickwork reinforcement built in horizontally | C265: m | D265: =32*3*2 -> 192 | E265: R 45.00 | F265: =E265*D265 -> R 8,640.00
B266: 150mm Wide reinforcement built in horizontally | C266: m | D266: =7.3*3*2+0.2 -> 44 | E266: R 45.00 | F266: =E266*D266 -> R 1,980.00
B268: Galvanised hoop iron cramps, ties, etc
B269: 30 x 1,6mm Cramp 500mm long with one end fixed to wood
B270: and other end built into brickwork | C270: No | D270: 16 | E270: R 150.00 | F270: =E270*D270 -> R 2,400.00
B272: Air bricks etc
B273: 229 x 152mm Terra-cotta vermin proof air brick (pair) | C273: No | D273: 8 | E273: R 150.00 | F273: =E273*D273 -> R 1,200.00
B275: To Collection | F275: =SUM(F258:F274) -> R 38,480.00 | G275: =SUM(G258:G274) -> R 0.00
B277: ROOF COVERINGS ETC
B279: ROOF SHEETING AND ACCESSORIES
B281: Saflock 700 AZ150 G550 interlocking roof sheeting with
B282: Z275 to both sides, on sisalation, fixed to timber
B283: intermediate purlins (purlins as per manufacturer's spec,
B284: taking into account windloads) secured with saflok 700
B285: clips srcrew fixed to purlins as per manufacturer's
B286: recommendations and specifications.
B288: Roof covering with 15 degree pitch, in transportable lengths not
B289: exceeding 20m. The description includes all related items. | C289: m2 | D289: 270 | E289: R 350.00 | F289: =E289*D289 -> R 94,500.00
B291: AG 150 G550 ridge capping with broad flute closures to suit
B292: roof profile with pre-painted factory finish. | C292: m | D292: 32 | E292: R 65.00 | F292: =E292*D292 -> R 2,080.00
B294: Narrow and broad flute closers | C294: m | D294: 32 | E294: R 65.00 | F294: =E294*D294 -> R 2,080.00
B296: Moulded narrow and broad rib polyethylene filler blocks | C296: m | D296: 32 | E296: R 65.00 | F296: =E296*D296 -> R 2,080.00
B298: ROOF AND WALL INSULATION
B300: Sisalation 420 or equal and approved heavy industrial
B301: grade aluminium foil based insulation
B303: Insulation laid taut over purlins (at approximately 1,80m
B304: centres) and fixed concurrent with roof covering, including
B305: taped laps and nylon straining wires | C305: m2 | D305: 270 | E305: R 25.00 | F305: =E305*D305 -> R 6,750.00
B307: To Collection | F307: =SUM(F280:F306) -> R 107,490.00 | G307: =SUM(G280:G306) -> R 0.00
B309: CARPENTRY AND JOINERY
B311: Sawn softwood
B312: 38 x 114mm Wall plates | C312: m | D312: =32*2 -> 64 | E312: R 65.00 | F312: =E312*D312 -> R 4,160.00
B314: 50 x 76mm Purlins not exceeding 6.6 m in length, to
B315: manufacturer's specification | C315: m | D315: =32*10 -> 320 | E315: R 85.00 | F315: =E315*D315 -> R 27,200.00
B317: Sundries
B318: Two coats ABE Provinite on wrought timbers | C318: m2 | D318: =(320*0.08*3)+0.2 -> 77 | E318: R 150.00 | F318: =E318*D318 -> R 11,550.00
B320: Teco two way hurricane clips secured to purlins and trusses
B321: at every intersection externally and internally galvanised wire is
B322: to be used | C322: No | D322: =8*5*2 -> 80 | E322: R 25.00 | F322: =E322*D322 -> R 2,000.00
... 1543 more rows

Sheet Blk 8 Toilet (hidden)
A1: Item | B1: Description | C1: Unit | D1: Qty | E1: Rate | F1: Storm Damage | G1: Maintenance
A3: A | B3: STAFF TOILET - BLOCK 8
A4: 1 | B4: Demolition
B5: Temporary barriers, screens, etc including removal
B7: Existing hoarding with poles | C7: m | E7: R 80.00 | G7: =E7*D7 -> R 0.00
B9: Existing shadecloth hoarding 1,8m high on Bonnox | C9: m | G9: =E9*D9 -> R 0.00
B10: fence fixed to gumpoles at suitable centres and refix in new
B11: position all to the Architect's approval
B13: Double gate size 6000 x 1800mm high formed of suitable | C13: No | G13: R 0.00
B14: tubular steel frame filled in with Bonnox fencing and covered
B15: with shadecloth including all necessary gate posts, locking
B16: mechanism, etc
B18: RELOCATION OF EXISTING STRUCTURES
B20: Breaking down and removing brickwork etc
B22: Half brick wall | C22: m² | G22: R 0.00
B24: One brick walls | C24: m² | G24: R 0.00
B26: Carefully disconnect all existing electrical, water and
B27: drainage service connections, etc and relocate existing
B28: park home including creating a new platform in the new
B29: position within the existing site boundary and
B30: re-connecting all services complete as per Architect's site
B31: plan
B33: Relocate existing Parking Home 9 x 7 x 3m high | C33: No | G33: R 0.00
B35: Relocate existing Parking Home 14,5 x 7 x 3m high wide | C35: No | G35: R 0.00
B37: Relocate existing Parking Home 28 x 7 x 3m high | C37: No | G37: R 0.00
B39: REMOVAL OF EXISTING WORK
B41: Breaking up and removing reinforced concrete including
B42: cutting off and removing reinforcement and cart away to a
B43: dumping site to be located by the contractor
B45: 100mm Thick surface bed | C45: m² | G45: R 0.00
B47: Taking out and removing doors, windows, etc from
B48: brickwork to be demolished
B50: Glazed steel window not exceeding 2,5m2 | C50: No | E50: R 50.00 | G50: R 0.00
B52: Taking down and removing roofs, floors, panelling,
B53: ceilings, partitions, etc
B55: Asbestors/metal roof covering including fascias and bardgeboards | C55: m2 | D55: 13 | E55: R 50.00 | G55: R 650.00
B56: and rainwater goods adn dispose off as per the SHE
B57: regulations.
B59: Wooden floors tiles including skirting, joints, bearers etc | C59: m² | G59: R 0.00
B61: Gypsum plasterboard ceilings, including cornices, timber | C61: m² | G61: R 0.00
B62: brandering, etc
B64: Taking out and removing joinery fittings etc
B66: Timber door 1610 x 2032mm high | C66: No | G66: R 0.00
B68: Timber door 910 x 2032mm high | C68: No | D68: 3 | E68: R 150.00 | G68: R 450.00
B70: Taking up and removing vinyl floor coverings, carpeting,
B71: etc
B73: Vinyl tile floor covering including preparing screed for new vinyl | C73: m² | G73: =E73*D73 -> R 0.00
B74: floor covering
B76: Taking out and removing ironmongery
B78: Mortice lock and striking plate from timber door and steel frame | C78: No | E78: R 50.00 | G78: R 0.00
B80: Take out and remove mirror and replace with new. | C80: No | G80: R 0.00
B82: Roof trusses including purlins | C82: No | E82: R 50.00 | G82: =E82*D82 -> R 0.00
B84: Fascia boards | C84: m | E84: R 10.00 | G84: =E84*D84 -> R 0.00
B86: Roof gutters | C86: m | E86: R 10.00 | G86: =E86*D86 -> R 0.00
B88: Downpipes | C88: m | E88: R 10.00 | G88: =E88*D88 -> R 0.00
B90: Taking out and removing piping, sanitary fittings, etc
B91: including disconnecting piping from fittings and making
B92: good floor and wall finishes (making good tiling and
B93: paintwork elsewhere)
B95: 50mm Cast iron piping including fittings and brackets | C95: m | G95: R 0.00
B97: Copper piping not exceeding 50mm dia including fittings and | C97: m | G97: R 0.00
B98: brackets
B100: 100mm PVC piping including fittings and brackets | C100: m | G100: R 0.00
B102: Piping exceeding 150mm and not exceeding 200mm. | C102: m | G102: R 0.00
B104: Vitreous china wash hand basin | C104: No | G104: R 0.00
B106: Vitreous china WC pan with cistern | C106: No | G106: R 0.00
B108: Stainless steel urinal including breaking up and removing | C108: No | G108: R 0.00
B109: concrete urinal step.
B111: PREPARATORY WORK TO EXISTING SURFACES
B113: Chipping of plaster in walls to recieve new all tiles. (Tiles | C113: m² | G113: R 0.00
B114: elesewhere measured)
K115: 17 | L115: 17 | N115: =L115+K115 -> 34
B116: Chipping of screed in floors to recieve new screed. | C116: m² | D116: 13 | E116: R 50.00 | G116: R 650.00 | K116: 8 | L116: 8 | M116: 8 | N116: =M116+L116+K116 -> 24
N117: =N115+N116 -> 58
B118: Cleaning walls to recieve paint. | C118: m² | E118: R 20.00 | G118: R 0.00 | N118: =N117*2 -> 116
N119: =N118*3 -> 348
B120: Walls in patches | C120: m² | E120: R 20.00 | G120: R 0.00
B122: OPENINGS THROUGH EXISTING WALLS ETC
B124: Breaking out for and forming openings through brick walls
B125: for new doors and frames including necessary precast
B126: concrete lintels and making good plaster on both sides
B127: and into reveals (new doors and frames and making good
B128: paintwork elsewhere)
B130: Opening for door with Aluminium frame 2032 x 900mm high | C130: No | G130: R 0.00
B131: overall through 230mm brick wall.
B133: Breaking out for and forming openings through brick walls
B134: for new windows including necessary precast concrete
B135: lintels and making good plaster on one side and into
B136: reveals and face brickwork on other side and into reveals
B137: and with 230mm Wide facebrick sill set sloping and slightly
B138: projecting on outside and flat plastered sill on inside (new
B139: windows and making good paintwork elsewhere)
B141: Opening for window 600 x 654mm high through one brick wall | C141: No | G141: R 0.00
B143: MAKING GOOD OF FINISHES ETC
B145: Making good brickwork to face of wall where half brick have | C145: m | G145: =E145*D145 -> R 0.00
B146: been demolished.
B148: Making good brickwork to face of wall where one brickwall was | C148: m | G148: R 0.00
B149: removed
B151: Carefully inspect timber roof structure, report findings to
B152: Representative/Agent and repair as instructed by cutting
B153: out rotten or damaged timber, inserting new like sized and
B154: graded timber and joining old to new timber as described
B156: Allow the net sum of R…………………………. (………….. Rand) for the | C156: Item | D156: 1 | G156: R 0.00
B157: inspection of timber roof structure on plan by a registered
B158: entomologist
B160: Carefully inspect, repair and make good existing roof
B161: coverings and other related elements
B163: Inspect existing IRB roofsheeting, refix or replace any damaged | C163: m² | G163: R 0.00
B164: areas with new to match existing
B166: Clean with a high pressure cleaner to remove stains,
B167: marks, algae, etc
B169: IBR roof sheeting covering with a pitch not exceeding 25⁰ | C169: m² | G169: R 0.00
B171: To Collection | G171: =SUM(G5:G170) -> R 1,750.00
B173: NEW WORKS
B175: EARTHWORKS
B177: Site clearance
B178: Digging up and removing rubbish, debris, vegetation, hedges,
B179: shrubs and trees not exceeding 200mm girth, bush, etc | C179: m2 | E179: R 15.00 | G179: =E179*D179 -> R 0.00
B181: Stripping average 100mm thick layer of top soil and stockpiling
B182: on site | C182: m2 | E182: R 25.00 | G182: =E182*D182 -> R 0.00
B184: EXCAVATIONS
B186: Open face excavation to reduce levels "cut to fill' | C186: m3 | D186: 3 | E186: R 50.00 | G186: R 150.00
B188: Excavation in earth not exceeding 2m deep
B189: Trenches for V-drains | C189: m3 | D189: 4 | E189: R 50.00 | G189: R 200.00 | J189: 34 | K189: 20 | L189: =K189+J189 -> 54 | M189: 0.6 | N189: 0.7 | O189: =N189*M189*L189 -> 22.68
O190: =O189*2 -> 45.36
B191: Extra over trench and hole excavations in earth for
B192: excavation in | L192: 54 | M192: 0.6 | N192: =M192*L192 -> 32.4
B193: Soft rock | C193: m3 | D193: 1 | E193: R 150.00 | G193: R 150.00
B195: Hard rock | C195: m3 | D195: 1 | E195: R 250.00 | G195: R 250.00
B197: Extra over all excavations for carting away
B198: Surplus material from excavations and/or stock piles on site to
B199: a dumping site to be located by the contractor | C199: m3 | E199: R 50.00 | G199: R 0.00
B201: Risk of collapse of excavations
B202: Sides of trench and hole excavations not exceeding 1,5m deep | C202: m2 | D202: 13 | E202: R 45.00 | G202: R 585.00
B204: Keeping excavations free of all water other than subterranean
B205: water | C205: Item | D205: 1 | E205: R 200.00 | G205: R 200.00
B207: FILLING ETC
B209: Earth filling supplied by the contractor, compacted to 95%
B210: Mod AASHTO density
B212: Under floors, steps, pavings, etc | C212: m3 | E212: R 350.00 | G212: R 0.00
B214: Backfilling to trenches, holes, etc | C214: m3 | E214: R 350.00 | G214: R 0.00
B216: Coarse river sand filling compacted to a density of at least
B217: 95% Mod. AASHTO density
B218: Under floors etc | C218: m3 | E218: R 350.00 | G218: R 0.00
B220: Compaction of surfaces
B221: Compaction of ground surface under floors etc including
B222: scarifying for a depth of 150mm, breaking down oversize
B223: material, adding suitable material where necessary and
B224: compacting to 95% Mod AASHTO density | C224: m2 | D224: 13 | E224: R 45.00 | G224: R 585.00
B226: SOIL POISONING
B227: Soil insecticide
B229: Soil Poisoning: Under floors etc, including forming and
B230: poisoning shallow furrows against foundation walls etc, filling in
B231: furrows and ramming | C231: m2 | D231: 13 | E231: R 20.00 | G231: R 260.00
B233: To bottoms and sides of trenches etc | C233: m2 | D233: 13 | E233: R 20.00 | G233: R 260.00
B235: To Collection | G235: =SUM(G179:G234) -> R 2,640.00
B238: CONCRETE, FORMWORK
B239: AND REINFORCEMENT
B241: 20Mpa/19mm concrete
B243: verandah floor cast in panels of 1850 centres, with controlled
B244: joints every 7400 centres | C244: m3 | E244: R 1,800.00 | G244: =E244*D244 -> R 0.00
K245: 54 | L245: 0.6 | M245: 0.25 | N245: =M245*L245*K245 -> 8.1
B246: Concrete aprons cast in panels, laid to fall in 1:200, with control
B247: joints filled with polysulphide sealant, every 3000mm centres | C247: m3 | D247: 3 | E247: R 1,800.00 | G247: R 5,400.00
B249: REINFORCED CONCRETE CAST AGAINST
B250: EXCAVATED SURFACES
B252: 25MPa/20mm concrete
B254: 25 Mpa: Strip footings | C254: m3 | E254: R 1,800.00 | G254: R 0.00
B256: Slab to cover pit | C256: m3 | E256: R 1,800.00 | G256: R 0.00
B258: TEST BLOCKS | K258: 54 | L258: =K258/2.4 -> 22.5 | M258: =L258*0.6 -> 13.5
B259: Making and testing of three 150 x 150 x 150mm concrete
B260: strength test cubes | C260: No | D260: 1 | E260: R 150.00 | G260: R 150.00
K261: 54 | L261: 0.6 | M261: =L261*K261 -> 32.4
B262: CONCRETE SUNDRIES
B264: Finishing top surfaces of concrete to a Class U2 wood
B265: float finish
B267: Surface beds, slabs, etc | C267: m2 | D267: 10 | E267: R 45.00 | G267: R 450.00
B269: Rough formwork to sides
B271: pit slabs propped up exceeding 1,5m and not exceeding 3.5m
B272: high, including removal from confined area. | C272: m2 | D272: 16 | E272: R 65.00 | G272: R 1,040.00
B274: MOVEMENT JOINTS ETC
B276: Expansion joints with softboard between vertical concrete
B277: surfaces
B279: 15mm Joints not exceeding 300mm high or wide | C279: m | D279: 4 | E279: R 15.00 | G279: R 60.00
B281: Expansion joints with bitumen-impregnated softboard
B282: between vertical concrete and brickwork surfaces
B284: 10mm Isolation Joints not exceeding 300mm high or wide | C284: m | D284: 4 | E284: R 15.00 | G284: R 60.00
B286: Saw cut joints
B287: 50 x 3mm Saw cut joints in top of concrete | C287: m | D287: 4 | E287: R 15.00 | G287: R 60.00
B289: REINFORCEMENT (PROVISIONAL) (CPAP Work
B290: Group 114)
B292: Mild steel reinforcement to structural concrete work
B294: 10mm Diameter bars | C294: t | E294: R 13,000.00 | G294: R 0.00
B296: 8mm Diameter bars | C296: t | E296: R 13,000.00 | G296: R 0.00
B298: High tensile steel reinforcement to structural concrete
B299: work
B300: 25mm Diameter bars | C300: t | E300: R 13,000.00 | G300: R 0.00
B302: Fabric reinforcement
B304: Type 193 fabric reinforcement in concrete surface beds, slabs, | C304: m2 | D304: 10 | E304: R 145.00 | G304: R 1,450.00
B305: etc
... 301 more rows

Sheet Blk 10 leaners Toilet (hidden)
A1: Item | B1: Description | C1: Unit | D1: Qty | E1: Rate | F1: Storm Damage | G1: Maintenance
A3: A | B3: LEANERS TOILET - BLOCK 10
A4: 1 | B4: Demolition
B5: Temporary barriers, screens, etc including removal
B7: Existing hoarding with poles | C7: m | E7: R 80.00 | G7: =E7*D7 -> R 0.00
B9: Existing shadecloth hoarding 1,8m high on Bonnox | C9: m | G9: =E9*D9 -> R 0.00
B10: fence fixed to gumpoles at suitable centres and refix in new
B11: position all to the Architect's approval
B13: Double gate size 6000 x 1800mm high formed of suitable | C13: No | G13: R 0.00
B14: tubular steel frame filled in with Bonnox fencing and covered
B15: with shadecloth including all necessary gate posts, locking
B16: mechanism, etc
B18: RELOCATION OF EXISTING STRUCTURES
B20: Breaking down and removing brickwork etc
B22: Half brick wall | C22: m² | G22: R 0.00
B24: One brick walls | C24: m² | G24: R 0.00
B26: Carefully disconnect all existing electrical, water and
B27: drainage service connections, etc and relocate existing
B28: park home including creating a new platform in the new
B29: position within the existing site boundary and
B30: re-connecting all services complete as per Architect's site
B31: plan
B33: Relocate existing Parking Home 9 x 7 x 3m high | C33: No | G33: R 0.00
B35: Relocate existing Parking Home 14,5 x 7 x 3m high wide | C35: No | G35: R 0.00
B37: Relocate existing Parking Home 28 x 7 x 3m high | C37: No | G37: R 0.00
B39: REMOVAL OF EXISTING WORK
B41: Breaking up and removing reinforced concrete including
B42: cutting off and removing reinforcement and cart away to a
B43: dumping site to be located by the contractor
B45: 100mm Thick surface bed | C45: m² | G45: R 0.00
B47: Taking out and removing doors, windows, etc from
B48: brickwork to be demolished
B50: Glazed steel window not exceeding 2,5m2 | C50: No | E50: R 50.00 | G50: R 0.00
B52: Taking down and removing roofs, floors, panelling,
B53: ceilings, partitions, etc
B55: Asbestors/metal roof covering including fascias and bardgeboards | C55: m2 | D55: 36 | E55: R 50.00 | G55: R 1,800.00
B56: and rainwater goods adn dispose off as per the SHE
B57: regulations.
B59: Wooden floors tiles including skirting, joints, bearers etc | C59: m² | G59: R 0.00
B61: Gypsum plasterboard ceilings, including cornices, timber | C61: m² | G61: R 0.00
B62: brandering, etc
B64: Taking out and removing joinery fittings etc
B66: Timber door 1610 x 2032mm high | C66: No
B68: Timber door 910 x 2032mm high | C68: No | D68: 8 | E68: R 150.00 | G68: R 1,200.00
B70: Taking up and removing vinyl floor coverings, carpeting,
B71: etc
B73: Vinyl tile floor covering including preparing screed for new vinyl | C73: m²
B74: floor covering
B76: Taking out and removing ironmongery
B78: Mortice lock and striking plate from timber door and steel frame | C78: No | E78: R 50.00 | G78: =E78*D78 -> R 0.00
B80: Take out and remove mirror and replace with new. | C80: No | G80: R 0.00
B82: Roof trusses including purlins | C82: No | E82: R 50.00 | G82: =E82*D82 -> R 0.00
B84: Fascia boards | C84: m | E84: R 10.00 | G84: =E84*D84 -> R 0.00
B86: Roof gutters | C86: m | E86: R 10.00 | G86: =E86*D86 -> R 0.00
B88: Downpipes | C88: m | E88: R 10.00 | G88: =E88*D88 -> R 0.00
B90: Taking out and removing piping, sanitary fittings, etc
B91: including disconnecting piping from fittings and making
B92: good floor and wall finishes (making good tiling and
B93: paintwork elsewhere)
B95: 50mm Cast iron piping including fittings and brackets | C95: m | G95: R 0.00
B97: Copper piping not exceeding 50mm dia including fittings and | C97: m | G97: R 0.00
B98: brackets
B100: 100mm PVC piping including fittings and brackets | C100: m | G100: R 0.00
B102: Piping exceeding 150mm and not exceeding 200mm. | C102: m | G102: R 0.00
B104: Vitreous china wash hand basin | C104: No | G104: R 0.00
B106: Vitreous china WC pan with cistern | C106: No | G106: R 0.00
B108: Stainless steel urinal including breaking up and removing | C108: No | G108: R 0.00
B109: concrete urinal step.
B111: PREPARATORY WORK TO EXISTING SURFACES
B113: Chipping of plaster in walls to recieve new all tiles. (Tiles | C113: m² | G113: R 0.00
B114: elesewhere measured)
K115: 17 | L115: 17 | N115: =L115+K115 -> 34
B116: Chipping of screed in floors to recieve new screed. | C116: m² | D116: 36 | E116: R 50.00 | G116: R 1,800.00 | K116: 8 | L116: 8 | M116: 8 | N116: =M116+L116+K116 -> 24
N117: =N115+N116 -> 58
B118: Cleaning walls to recieve paint. | C118: m² | E118: R 20.00 | G118: R 0.00 | N118: =N117*2 -> 116
N119: =N118*3 -> 348
B120: Walls in patches | C120: m² | E120: R 20.00 | G120: R 0.00
B122: OPENINGS THROUGH EXISTING WALLS ETC
B124: Breaking out for and forming openings through brick walls
B125: for new doors and frames including necessary precast
B126: concrete lintels and making good plaster on both sides
B127: and into reveals (new doors and frames and making good
B128: paintwork elsewhere)
B130: Opening for door with Aluminium frame 2032 x 900mm high | C130: No | G130: R 0.00
B131: overall through 230mm brick wall.
B133: Breaking out for and forming openings through brick walls
B134: for new windows including necessary precast concrete
B135: lintels and making good plaster on one side and into
B136: reveals and face brickwork on other side and into reveals
B137: and with 230mm Wide facebrick sill set sloping and slightly
B138: projecting on outside and flat plastered sill on inside (new
B139: windows and making good paintwork elsewhere)
B141: Opening for window 600 x 654mm high through one brick wall | C141: No | G141: R 0.00
B143: MAKING GOOD OF FINISHES ETC
B145: Making good brickwork to face of wall where half brick have | C145: m | G145: =E145*D145 -> R 0.00
B146: been demolished.
B148: Making good brickwork to face of wall where one brickwall was | C148: m | G148: R 0.00
B149: removed
B151: Carefully inspect timber roof structure, report findings to
B152: Representative/Agent and repair as instructed by cutting
B153: out rotten or damaged timber, inserting new like sized and
B154: graded timber and joining old to new timber as described
B156: Allow the net sum of R…………………………. (………….. Rand) for the | C156: Item | D156: 1 | G156: R 0.00
B157: inspection of timber roof structure on plan by a registered
B158: entomologist
B160: Carefully inspect, repair and make good existing roof
B161: coverings and other related elements
B163: Inspect existing IRB roofsheeting, refix or replace any damaged | C163: m² | G163: R 0.00
B164: areas with new to match existing
B166: Clean with a high pressure cleaner to remove stains,
B167: marks, algae, etc
B169: IBR roof sheeting covering with a pitch not exceeding 25⁰ | C169: m² | G169: R 0.00
B171: To Collection | G171: =SUM(G5:G170) -> R 4,800.00
B173: NEW WORKS
B175: EARTHWORKS
B177: Site clearance
B178: Digging up and removing rubbish, debris, vegetation, hedges,
B179: shrubs and trees not exceeding 200mm girth, bush, etc | C179: m2 | E179: R 15.00 | G179: =E179*D179 -> R 0.00
B181: Stripping average 100mm thick layer of top soil and stockpiling
B182: on site | C182: m2 | D182: 30 | E182: R 25.00 | G182: =E182*D182 -> R 750.00
B184: EXCAVATIONS
B186: Open face excavation to reduce levels "cut to fill' | C186: m3 | D186: 15 | E186: R 50.00 | G186: R 750.00
B188: Excavation in earth not exceeding 2m deep
B189: Trenches for V-drains | C189: m3 | D189: 15 | E189: R 50.00 | G189: R 750.00 | J189: 34 | K189: 20 | L189: =K189+J189 -> 54 | M189: 0.6 | N189: 0.7 | O189: =N189*M189*L189 -> 22.68
O190: =O189*2 -> 45.36
B191: Extra over trench and hole excavations in earth for
B192: excavation in | L192: 54 | M192: 0.6 | N192: =M192*L192 -> 32.4
B193: Soft rock | C193: m3 | D193: 2 | E193: R 150.00 | G193: R 300.00
B195: Hard rock | C195: m3 | D195: 1 | E195: R 250.00 | G195: R 250.00
B197: Extra over all excavations for carting away
B198: Surplus material from excavations and/or stock piles on site to
B199: a dumping site to be located by the contractor | C199: m3 | E199: R 50.00
B201: Risk of collapse of excavations
B202: Sides of trench and hole excavations not exceeding 1,5m deep | C202: m2 | D202: 18 | E202: R 45.00 | G202: R 810.00
B204: Keeping excavations free of all water other than subterranean
B205: water | C205: Item | D205: 1 | E205: R 400.00 | G205: R 400.00
B207: FILLING ETC
B209: Earth filling supplied by the contractor, compacted to 95%
B210: Mod AASHTO density
B212: Under floors, steps, pavings, etc | C212: m3 | D212: 7 | E212: R 350.00 | G212: R 2,450.00
B214: Backfilling to trenches, holes, etc | C214: m3 | D214: 3 | E214: R 350.00 | G214: R 1,050.00
B216: Coarse river sand filling compacted to a density of at least
B217: 95% Mod. AASHTO density
B218: Under floors etc | C218: m3 | D218: 7 | E218: R 350.00 | G218: R 2,450.00
B220: Compaction of surfaces
B221: Compaction of ground surface under floors etc including
B222: scarifying for a depth of 150mm, breaking down oversize
B223: material, adding suitable material where necessary and
B224: compacting to 95% Mod AASHTO density | C224: m2 | D224: 15 | E224: R 45.00 | G224: R 675.00
B226: SOIL POISONING
B227: Soil insecticide
B229: Soil Poisoning: Under floors etc, including forming and
B230: poisoning shallow furrows against foundation walls etc, filling in
B231: furrows and ramming | C231: m2 | D231: 15 | E231: R 20.00 | G231: R 300.00
B233: To bottoms and sides of trenches etc | C233: m2 | D233: 15 | E233: R 20.00 | G233: R 300.00
B235: To Collection | G235: =SUM(G179:G234) -> R 11,235.00
B238: CONCRETE, FORMWORK
B239: AND REINFORCEMENT
B241: 20Mpa/19mm concrete
B243: verandah floor cast in panels of 1850 centres, with controlled
B244: joints every 7400 centres | C244: m3 | E244: R 1,800.00 | G244: =E244*D244 -> R 0.00
K245: 54 | L245: 0.6 | M245: 0.25 | N245: =M245*L245*K245 -> 8.1
B246: Concrete aprons cast in panels, laid to fall in 1:200, with control
B247: joints filled with polysulphide sealant, every 3000mm centres | C247: m3 | D247: 4 | E247: R 1,800.00 | G247: R 7,200.00
B249: REINFORCED CONCRETE CAST AGAINST
B250: EXCAVATED SURFACES
B252: 25MPa/20mm concrete
B254: 25 Mpa: Strip footings | C254: m3 | E254: R 1,800.00 | G254: R 0.00
B256: Slab to cover pit | C256: m3 | E256: R 1,800.00 | G256: R 0.00
B258: TEST BLOCKS | K258: 54 | L258: =K258/2.4 -> 22.5 | M258: =L258*0.6 -> 13.5
B259: Making and testing of three 150 x 150 x 150mm concrete
B260: strength test cubes | C260: No | D260: 2 | E260: R 150.00 | G260: R 300.00
K261: 54 | L261: 0.6 | M261: =L261*K261 -> 32.4
B262: CONCRETE SUNDRIES
B264: Finishing top surfaces of concrete to a Class U2 wood
B265: float finish
B267: Surface beds, slabs, etc | C267: m2 | D267: 15 | E267: R 45.00 | G267: R 675.00
B269: Rough formwork to sides
B271: pit slabs propped up exceeding 1,5m and not exceeding 3.5m
B272: high, including removal from confined area. | C272: m2 | D272: 24 | E272: R 65.00 | G272: R 1,560.00
B274: MOVEMENT JOINTS ETC
B276: Expansion joints with softboard between vertical concrete
B277: surfaces
B279: 15mm Joints not exceeding 300mm high or wide | C279: m | D279: 6 | E279: R 15.00 | G279: R 90.00
B281: Expansion joints with bitumen-impregnated softboard
B282: between vertical concrete and brickwork surfaces
B284: 10mm Isolation Joints not exceeding 300mm high or wide | C284: m | D284: 6 | E284: R 15.00 | G284: R 90.00
B286: Saw cut joints
B287: 50 x 3mm Saw cut joints in top of concrete | C287: m | D287: 6 | E287: R 15.00 | G287: R 90.00
B289: REINFORCEMENT (PROVISIONAL) (CPAP Work
B290: Group 114)
B292: Mild steel reinforcement to structural concrete work
B294: 10mm Diameter bars | C294: t | E294: R 13,000.00 | G294: R 0.00
B296: 8mm Diameter bars | C296: t | E296: R 13,000.00 | G296: R 0.00
B298: High tensile steel reinforcement to structural concrete
B299: work
B300: 25mm Diameter bars | C300: t | E300: R 13,000.00 | G300: R 0.00
B302: Fabric reinforcement
B304: Type 193 fabric reinforcement in concrete surface beds, slabs, | C304: m2 | D304: 15 | E304: R 145.00 | G304: R 2,175.00
B305: etc
... 302 more rows

Sheet Blk 9 Toilet (hidden)
A1: Item | B1: Description | C1: Unit | D1: Qty | E1: Rate | F1: Storm Damage | G1: Maintenance
A3: A | B3: - BLOCK 9
A4: 1 | B4: Demolition
B5: Temporary barriers, screens, etc including removal
B7: Existing hoarding with poles | C7: m | E7: R 80.00 | G7: =E7*D7 -> R 0.00
B9: Existing shadecloth hoarding 1,8m high on Bonnox | C9: m | G9: =E9*D9 -> R 0.00
B10: fence fixed to gumpoles at suitable centres and refix in new
B11: position all to the Architect's approval
B13: Double gate size 6000 x 1800mm high formed of suitable | C13: No | G13: R 0.00
B14: tubular steel frame filled in with Bonnox fencing and covered
B15: with shadecloth including all necessary gate posts, locking
B16: mechanism, etc
B18: RELOCATION OF EXISTING STRUCTURES
B20: Breaking down and removing brickwork etc
B22: Half brick wall | C22: m² | G22: R 0.00
B24: One brick walls | C24: m² | G24: R 0.00
B26: Carefully disconnect all existing electrical, water and
B27: drainage service connections, etc and relocate existing
B28: park home including creating a new platform in the new
B29: position within the existing site boundary and
B30: re-connecting all services complete as per Architect's site
B31: plan
B33: Relocate existing Parking Home 9 x 7 x 3m high | C33: No | G33: R 0.00
B35: Relocate existing Parking Home 14,5 x 7 x 3m high wide | C35: No | G35: R 0.00
B37: Relocate existing Parking Home 28 x 7 x 3m high | C37: No | G37: R 0.00
B39: REMOVAL OF EXISTING WORK
B41: Breaking up and removing reinforced concrete including
B42: cutting off and removing reinforcement and cart away to a
B43: dumping site to be located by the contractor
B45: 100mm Thick surface bed | C45: m² | G45: R 0.00
B47: Taking out and removing doors, windows, etc from
B48: brickwork to be demolished
B50: Glazed steel window not exceeding 2,5m2 | C50: No | E50: R 50.00 | G50: R 0.00
B52: Taking down and removing roofs, floors, panelling,
B53: ceilings, partitions, etc
B55: Asbestors/metal roof covering including fascias and bardgeboards | C55: m2 | D55: 25 | E55: R 50.00 | G55: R 1,250.00
B56: and rainwater goods adn dispose off as per the SHE
B57: regulations.
B59: Wooden floors tiles including skirting, joints, bearers etc | C59: m² | G59: R 0.00
B61: Gypsum plasterboard ceilings, including cornices, timber | C61: m² | G61: R 0.00
B62: brandering, etc
B64: Taking out and removing joinery fittings etc
B66: Timber door 1610 x 2032mm high | C66: No | G66: R 0.00
B68: Timber door 910 x 2032mm high | C68: No | E68: R 150.00 | G68: R 0.00
B70: Taking up and removing vinyl floor coverings, carpeting,
B71: etc
B73: Vinyl tile floor covering including preparing screed for new vinyl | C73: m² | G73: =E73*D73 -> R 0.00
B74: floor covering
B76: Taking out and removing ironmongery
B78: Mortice lock and striking plate from timber door and steel frame | C78: No | E78: R 50.00 | G78: R 0.00
B80: Take out and remove mirror and replace with new. | C80: No | G80: R 0.00
B82: Roof trusses including purlins | C82: No | E82: R 50.00 | G82: =E82*D82 -> R 0.00
B84: Fascia boards | C84: m | E84: R 10.00 | G84: =E84*D84 -> R 0.00
B86: Roof gutters | C86: m | E86: R 10.00 | G86: =E86*D86 -> R 0.00
B88: Downpipes | C88: m | E88: R 10.00 | G88: =E88*D88 -> R 0.00
B90: Taking out and removing piping, sanitary fittings, etc | G90: R 0.00
B91: including disconnecting piping from fittings and making
B92: good floor and wall finishes (making good tiling and
B93: paintwork elsewhere)
B95: 50mm Cast iron piping including fittings and brackets | C95: m | G95: R 0.00
B97: Copper piping not exceeding 50mm dia including fittings and | C97: m | G97: R 0.00
B98: brackets
B100: 100mm PVC piping including fittings and brackets | C100: m | G100: R 0.00
B102: Piping exceeding 150mm and not exceeding 200mm. | C102: m | G102: R 0.00
B104: Vitreous china wash hand basin | C104: No | G104: R 0.00
B106: Vitreous china WC pan with cistern | C106: No | G106: R 0.00
B108: Stainless steel urinal including breaking up and removing | C108: No | G108: R 0.00
B109: concrete urinal step.
B111: PREPARATORY WORK TO EXISTING SURFACES
B113: Chipping of plaster in walls to recieve new all tiles. (Tiles | C113: m² | G113: R 0.00
B114: elesewhere measured)
K115: 17 | L115: 17 | N115: =L115+K115 -> 34
B116: Chipping of screed in floors to recieve new screed. | C116: m² | D116: 36 | E116: R 50.00 | G116: R 1,800.00 | K116: 8 | L116: 8 | M116: 8 | N116: =M116+L116+K116 -> 24
N117: =N115+N116 -> 58
B118: Cleaning walls to recieve paint. | C118: m² | D118: 118 | E118: R 20.00 | G118: R 2,360.00 | N118: =N117*2 -> 116
N119: =N118*3 -> 348
B120: Walls in patches | C120: m² | E120: R 20.00 | G120: R 0.00
B122: OPENINGS THROUGH EXISTING WALLS ETC
B124: Breaking out for and forming openings through brick walls
B125: for new doors and frames including necessary precast
B126: concrete lintels and making good plaster on both sides
B127: and into reveals (new doors and frames and making good
B128: paintwork elsewhere)
B130: Opening for door with Aluminium frame 2032 x 900mm high | C130: No | G130: R 0.00
B131: overall through 230mm brick wall.
B133: Breaking out for and forming openings through brick walls
B134: for new windows including necessary precast concrete
B135: lintels and making good plaster on one side and into
B136: reveals and face brickwork on other side and into reveals
B137: and with 230mm Wide facebrick sill set sloping and slightly
B138: projecting on outside and flat plastered sill on inside (new
B139: windows and making good paintwork elsewhere)
B141: Opening for window 600 x 654mm high through one brick wall | C141: No | G141: R 0.00
B143: MAKING GOOD OF FINISHES ETC
B145: Making good brickwork to face of wall where half brick have | C145: m | G145: =E145*D145 -> R 0.00
B146: been demolished.
B148: Making good brickwork to face of wall where one brickwall was | C148: m | G148: R 0.00
B149: removed
B151: Carefully inspect timber roof structure, report findings to
B152: Representative/Agent and repair as instructed by cutting
B153: out rotten or damaged timber, inserting new like sized and
B154: graded timber and joining old to new timber as described
B156: Allow the net sum of R…………………………. (………….. Rand) for the | C156: Item | D156: 1 | G156: R 0.00
B157: inspection of timber roof structure on plan by a registered
B158: entomologist
B160: Carefully inspect, repair and make good existing roof
B161: coverings and other related elements
B163: Inspect existing IRB roofsheeting, refix or replace any damaged | C163: m² | G163: R 0.00
B164: areas with new to match existing
B166: Clean with a high pressure cleaner to remove stains,
B167: marks, algae, etc
B169: IBR roof sheeting covering with a pitch not exceeding 25⁰ | C169: m² | G169: R 0.00
B171: To Collection | G171: =SUM(G5:G170) -> R 5,410.00
B173: NEW WORKS
B175: EARTHWORKS
B177: Site clearance
B178: Digging up and removing rubbish, debris, vegetation, hedges,
B179: shrubs and trees not exceeding 200mm girth, bush, etc | C179: m2 | E179: R 15.00 | G179: =E179*D179 -> R 0.00
B181: Stripping average 100mm thick layer of top soil and stockpiling
B182: on site | C182: m2 | D182: 20 | E182: R 25.00 | G182: =E182*D182 -> R 500.00
B184: EXCAVATIONS
B186: Open face excavation to reduce levels "cut to fill' | C186: m3 | D186: 5 | E186: R 50.00 | G186: R 250.00
B188: Excavation in earth not exceeding 2m deep
B189: Trenches for V-drains | C189: m3 | D189: 7 | E189: R 50.00 | G189: R 350.00 | J189: 34 | K189: 20 | L189: =K189+J189 -> 54 | M189: 0.6 | N189: 0.7 | O189: =N189*M189*L189 -> 22.68
O190: =O189*2 -> 45.36
B191: Extra over trench and hole excavations in earth for
B192: excavation in | L192: 54 | M192: 0.6 | N192: =M192*L192 -> 32.4
B193: Soft rock | C193: m3 | D193: 2 | E193: R 150.00 | G193: R 300.00
B195: Hard rock | C195: m3 | D195: 1 | E195: R 250.00 | G195: R 250.00
B197: Extra over all excavations for carting away
B198: Surplus material from excavations and/or stock piles on site to
B199: a dumping site to be located by the contractor | C199: m3 | E199: R 50.00 | G199: R 0.00
B201: Risk of collapse of excavations
B202: Sides of trench and hole excavations not exceeding 1,5m deep | C202: m2 | D202: 20 | E202: R 45.00 | G202: R 900.00
B204: Keeping excavations free of all water other than subterranean
B205: water | C205: Item | D205: 1 | E205: R 400.00 | G205: R 400.00
B207: FILLING ETC
B209: Earth filling supplied by the contractor, compacted to 95%
B210: Mod AASHTO density
B212: Under floors, steps, pavings, etc | C212: m3 | D212: 2 | E212: R 350.00 | G212: R 700.00
B214: Backfilling to trenches, holes, etc | C214: m3 | D214: 1 | E214: R 350.00 | G214: R 350.00
B216: Coarse river sand filling compacted to a density of at least
B217: 95% Mod. AASHTO density
B218: Under floors etc | C218: m3 | E218: R 350.00 | G218: R 0.00
B220: Compaction of surfaces
B221: Compaction of ground surface under floors etc including
B222: scarifying for a depth of 150mm, breaking down oversize
B223: material, adding suitable material where necessary and
B224: compacting to 95% Mod AASHTO density | C224: m2 | D224: 12 | E224: R 45.00 | G224: R 540.00
B226: SOIL POISONING
B227: Soil insecticide
B229: Soil Poisoning: Under floors etc, including forming and
B230: poisoning shallow furrows against foundation walls etc, filling in
B231: furrows and ramming | C231: m2 | D231: 12 | E231: R 20.00 | G231: R 240.00
B233: To bottoms and sides of trenches etc | C233: m2 | D233: 12 | E233: R 20.00 | G233: R 240.00
B235: To Collection | G235: =SUM(G179:G234) -> R 5,020.00
B238: CONCRETE, FORMWORK
B239: AND REINFORCEMENT
B241: 20Mpa/19mm concrete
B243: verandah floor cast in panels of 1850 centres, with controlled
B244: joints every 7400 centres | C244: m3 | E244: R 1,800.00 | G244: =E244*D244 -> R 0.00
K245: 54 | L245: 0.6 | M245: 0.25 | N245: =M245*L245*K245 -> 8.1
B246: Concrete aprons cast in panels, laid to fall in 1:200, with control
B247: joints filled with polysulphide sealant, every 3000mm centres | C247: m3 | D247: 3 | E247: R 1,800.00 | G247: R 5,400.00
B249: REINFORCED CONCRETE CAST AGAINST
B250: EXCAVATED SURFACES
B252: 25MPa/20mm concrete
B254: 25 Mpa: Strip footings | C254: m3 | E254: R 1,800.00 | G254: R 0.00
B256: Slab to cover pit | C256: m3 | E256: R 1,800.00 | G256: R 0.00
B258: TEST BLOCKS | K258: 54 | L258: =K258/2.4 -> 22.5 | M258: =L258*0.6 -> 13.5
B259: Making and testing of three 150 x 150 x 150mm concrete
B260: strength test cubes | C260: No | D260: 2 | E260: R 150.00 | G260: R 300.00
K261: 54 | L261: 0.6 | M261: =L261*K261 -> 32.4
B262: CONCRETE SUNDRIES
B264: Finishing top surfaces of concrete to a Class U2 wood
B265: float finish
B267: Surface beds, slabs, etc | C267: m2 | D267: 12 | E267: R 45.00 | G267: R 540.00
B269: Rough formwork to sides
B271: pit slabs propped up exceeding 1,5m and not exceeding 3.5m
B272: high, including removal from confined area. | C272: m2 | D272: 20 | E272: R 65.00 | G272: R 1,300.00
B274: MOVEMENT JOINTS ETC
B276: Expansion joints with softboard between vertical concrete
B277: surfaces
B279: 15mm Joints not exceeding 300mm high or wide | C279: m | D279: 5 | E279: R 15.00 | G279: R 75.00
B281: Expansion joints with bitumen-impregnated softboard
B282: between vertical concrete and brickwork surfaces
B284: 10mm Isolation Joints not exceeding 300mm high or wide | C284: m | D284: 5 | E284: R 15.00 | G284: R 75.00
B286: Saw cut joints
B287: 50 x 3mm Saw cut joints in top of concrete | C287: m | D287: 5 | E287: R 15.00 | G287: R 75.00
B289: REINFORCEMENT (PROVISIONAL) (CPAP Work
B290: Group 114)
B292: Mild steel reinforcement to structural concrete work
B294: 10mm Diameter bars | C294: t | E294: R 13,000.00 | G294: R 0.00
B296: 8mm Diameter bars | C296: t | E296: R 13,000.00 | G296: R 0.00
B298: High tensile steel reinforcement to structural concrete
B299: work
B300: 25mm Diameter bars | C300: t | E300: R 13,000.00 | G300: R 0.00
B302: Fabric reinforcement
B304: Type 193 fabric reinforcement in concrete surface beds, slabs, | C304: m2 | D304: 12 | E304: R 145.00 | G304: R 1,740.00
B305: etc
... 302 more rows

Sheet Blk 11 Guard H (hidden)
A1: Item | B1: Description | C1: Unit | D1: Qty | E1: Rate | F1: Storm Damage | G1: Maintenance
A3: A | B3: GUARD HOUSE - BLOCK 10
A4: 1 | B4: Demolition
B5: Temporary barriers, screens, etc including removal
B7: Existing hoarding with poles | C7: m | D7: 8 | E7: R 80.00 | G7: =E7*D7 -> R 640.00
B9: Existing shadecloth hoarding 1,8m high on Bonnox | C9: m | G9: =E9*D9 -> R 0.00
B10: fence fixed to gumpoles at suitable centres and refix in new
B11: position all to the Architect's approval
B13: Double gate size 6000 x 1800mm high formed of suitable | C13: No | G13: R 0.00
B14: tubular steel frame filled in with Bonnox fencing and covered
B15: with shadecloth including all necessary gate posts, locking
B16: mechanism, etc
B18: RELOCATION OF EXISTING STRUCTURES
B20: Breaking down and removing brickwork etc
B22: Half brick wall | C22: m² | G22: R 0.00
B24: One brick walls | C24: m² | G24: R 0.00
B26: Carefully disconnect all existing electrical, water and
B27: drainage service connections, etc and relocate existing
B28: park home including creating a new platform in the new
B29: position within the existing site boundary and
B30: re-connecting all services complete as per Architect's site
B31: plan
B33: Relocate existing Parking Home 9 x 7 x 3m high | C33: No | G33: R 0.00
B35: Relocate existing Parking Home 14,5 x 7 x 3m high wide | C35: No | G35: R 0.00
B37: Relocate existing Parking Home 28 x 7 x 3m high | C37: No | G37: R 0.00
B39: REMOVAL OF EXISTING WORK
B41: Breaking up and removing reinforced concrete including
B42: cutting off and removing reinforcement and cart away to a
B43: dumping site to be located by the contractor
B45: 100mm Thick surface bed | C45: m² | G45: R 0.00
B47: Taking out and removing doors, windows, etc from
B48: brickwork to be demolished
B50: Glazed steel window not exceeding 2,5m2 | C50: No | E50: R 50.00 | G50: R 0.00
B52: Taking down and removing roofs, floors, panelling,
B53: ceilings, partitions, etc
B55: Asbestors/metal roof covering including fascias and bardgeboards | C55: m2 | D55: 9 | E55: R 50.00 | G55: R 450.00
B56: and rainwater goods adn dispose off as per the SHE
B57: regulations.
B59: Wooden floors tiles including skirting, joints, bearers etc | C59: m² | G59: R 0.00
B61: Gypsum plasterboard ceilings, including cornices, timber | C61: m² | G61: R 0.00
B62: brandering, etc
B64: Taking out and removing joinery fittings etc
B66: Timber door 1610 x 2032mm high | C66: No | G66: R 0.00
B68: Timber door 910 x 2032mm high | C68: No | D68: 1 | E68: R 150.00 | G68: R 150.00
B70: Taking up and removing vinyl floor coverings, carpeting,
B71: etc
B73: Vinyl tile floor covering including preparing screed for new vinyl | C73: m² | G73: =E73*D73 -> R 0.00
B74: floor covering
B76: Taking out and removing ironmongery
B78: Mortice lock and striking plate from timber door and steel frame | C78: No | E78: R 50.00 | G78: R 0.00
B80: Take out and remove mirror and replace with new. | C80: No | G80: R 0.00
B82: Roof trusses including purlins | C82: No | E82: R 50.00 | G82: =E82*D82 -> R 0.00
B84: Fascia boards | C84: m | E84: R 10.00 | G84: =E84*D84 -> R 0.00
B86: Roof gutters | C86: m | E86: R 10.00 | G86: =E86*D86 -> R 0.00
B88: Downpipes | C88: m | E88: R 10.00 | G88: =E88*D88 -> R 0.00
B90: Taking out and removing piping, sanitary fittings, etc
B91: including disconnecting piping from fittings and making
B92: good floor and wall finishes (making good tiling and
B93: paintwork elsewhere)
B95: 50mm Cast iron piping including fittings and brackets | C95: m | G95: R 0.00
B97: Copper piping not exceeding 50mm dia including fittings and | C97: m | G97: R 0.00
B98: brackets
B100: 100mm PVC piping including fittings and brackets | C100: m | G100: R 0.00
B102: Piping exceeding 150mm and not exceeding 200mm. | C102: m | G102: R 0.00
B104: Vitreous china wash hand basin | C104: No | G104: R 0.00
B106: Vitreous china WC pan with cistern | C106: No | G106: R 0.00
B108: Stainless steel urinal including breaking up and removing | C108: No | G108: R 0.00
B109: concrete urinal step.
B111: PREPARATORY WORK TO EXISTING SURFACES
B113: Chipping of plaster in walls to recieve new all tiles. (Tiles | C113: m² | G113: R 0.00
B114: elesewhere measured)
K115: 17 | L115: 17 | N115: =L115+K115 -> 34
B116: Chipping of screed in floors to recieve new screed. | C116: m² | D116: 7 | E116: R 50.00 | G116: R 350.00 | K116: 8 | L116: 8 | M116: 8 | N116: =M116+L116+K116 -> 24
N117: =N115+N116 -> 58
B118: Cleaning walls to recieve paint. | C118: m² | D118: 51 | E118: R 20.00 | G118: R 1,020.00 | N118: =N117*2 -> 116
N119: =N118*3 -> 348
B120: Walls in patches | C120: m² | E120: R 20.00 | G120: R 0.00
B122: OPENINGS THROUGH EXISTING WALLS ETC
B124: Breaking out for and forming openings through brick walls
B125: for new doors and frames including necessary precast
B126: concrete lintels and making good plaster on both sides
B127: and into reveals (new doors and frames and making good
B128: paintwork elsewhere)
B130: Opening for door with Aluminium frame 2032 x 900mm high | C130: No | G130: R 0.00
B131: overall through 230mm brick wall.
B133: Breaking out for and forming openings through brick walls
B134: for new windows including necessary precast concrete
B135: lintels and making good plaster on one side and into
B136: reveals and face brickwork on other side and into reveals
B137: and with 230mm Wide facebrick sill set sloping and slightly
B138: projecting on outside and flat plastered sill on inside (new
B139: windows and making good paintwork elsewhere)
B141: Opening for window 600 x 654mm high through one brick wall | C141: No | G141: R 0.00
B143: MAKING GOOD OF FINISHES ETC
B145: Making good brickwork to face of wall where half brick have | C145: m | G145: =E145*D145 -> R 0.00
B146: been demolished.
B148: Making good brickwork to face of wall where one brickwall was | C148: m | G148: R 0.00
B149: removed
B151: Carefully inspect timber roof structure, report findings to
B152: Representative/Agent and repair as instructed by cutting
B153: out rotten or damaged timber, inserting new like sized and
B154: graded timber and joining old to new timber as described
B156: Allow the net sum of R…………………………. (………….. Rand) for the | C156: Item | D156: 1 | G156: R 0.00
B157: inspection of timber roof structure on plan by a registered
B158: entomologist
B160: Carefully inspect, repair and make good existing roof
B161: coverings and other related elements
B163: Inspect existing IRB roofsheeting, refix or replace any damaged | C163: m² | G163: R 0.00
B164: areas with new to match existing
B166: Clean with a high pressure cleaner to remove stains,
B167: marks, algae, etc
B169: IBR roof sheeting covering with a pitch not exceeding 25⁰ | C169: m² | G169: R 0.00
B171: To Collection | G171: =SUM(G5:G170) -> R 2,610.00
B173: NEW WORKS
B175: EARTHWORKS
B177: Site clearance
B178: Digging up and removing rubbish, debris, vegetation, hedges,
B179: shrubs and trees not exceeding 200mm girth, bush, etc | C179: m2 | E179: R 15.00 | G179: =E179*D179 -> R 0.00
B181: Stripping average 100mm thick layer of top soil and stockpiling
B182: on site | C182: m2 | D182: 10 | E182: R 25.00 | G182: =E182*D182 -> R 250.00
B184: EXCAVATIONS
B186: Open face excavation to reduce levels "cut to fill' | C186: m3 | D186: 3 | E186: R 50.00 | G186: R 150.00
B188: Excavation in earth not exceeding 2m deep
B189: Trenches for V-drains | C189: m3 | D189: 4 | E189: R 50.00 | G189: R 200.00 | J189: 34 | K189: 20 | L189: =K189+J189 -> 54 | M189: 0.6 | N189: 0.7 | O189: =N189*M189*L189 -> 22.68
O190: =O189*2 -> 45.36
B191: Extra over trench and hole excavations in earth for
B192: excavation in | L192: 54 | M192: 0.6 | N192: =M192*L192 -> 32.4
B193: Soft rock | C193: m3 | D193: 1 | E193: R 150.00 | G193: R 150.00
B195: Hard rock | C195: m3 | D195: 1 | E195: R 250.00 | G195: R 250.00
B197: Extra over all excavations for carting away
B198: Surplus material from excavations and/or stock piles on site to
B199: a dumping site to be located by the contractor | C199: m3 | E199: R 50.00
B201: Risk of collapse of excavations
B202: Sides of trench and hole excavations not exceeding 1,5m deep | C202: m2 | D202: 10 | E202: R 45.00 | G202: R 450.00
B204: Keeping excavations free of all water other than subterranean
B205: water | C205: Item | D205: 1 | E205: R 200.00 | G205: R 200.00
B207: FILLING ETC
B209: Earth filling supplied by the contractor, compacted to 95%
B210: Mod AASHTO density
B212: Under floors, steps, pavings, etc | C212: m3 | E212: R 350.00 | G212: R 0.00
B214: Backfilling to trenches, holes, etc | C214: m3 | E214: R 350.00 | G214: R 0.00
B216: Coarse river sand filling compacted to a density of at least
B217: 95% Mod. AASHTO density
B218: Under floors etc | C218: m3 | E218: R 350.00 | G218: R 0.00
B220: Compaction of surfaces
B221: Compaction of ground surface under floors etc including
B222: scarifying for a depth of 150mm, breaking down oversize
B223: material, adding suitable material where necessary and
B224: compacting to 95% Mod AASHTO density | C224: m2 | D224: 6 | E224: R 45.00 | G224: R 270.00
B226: SOIL POISONING
B227: Soil insecticide
B229: Soil Poisoning: Under floors etc, including forming and
B230: poisoning shallow furrows against foundation walls etc, filling in
B231: furrows and ramming | C231: m2 | D231: 10 | E231: R 20.00 | G231: R 200.00
B233: To bottoms and sides of trenches etc | C233: m2 | D233: 10 | E233: R 20.00 | G233: R 200.00
B235: To Collection | G235: =SUM(G179:G234) -> R 2,320.00
B238: CONCRETE, FORMWORK
B239: AND REINFORCEMENT
B241: 20Mpa/19mm concrete
B243: verandah floor cast in panels of 1850 centres, with controlled
B244: joints every 7400 centres | C244: m3 | E244: R 1,800.00 | G244: =E244*D244 -> R 0.00
K245: 54 | L245: 0.6 | M245: 0.25 | N245: =M245*L245*K245 -> 8.1
B246: Concrete aprons cast in panels, laid to fall in 1:200, with control
B247: joints filled with polysulphide sealant, every 3000mm centres | C247: m3 | D247: 2 | E247: R 1,800.00 | G247: R 3,600.00
B249: REINFORCED CONCRETE CAST AGAINST
B250: EXCAVATED SURFACES
B252: 25MPa/20mm concrete
B254: 25 Mpa: Strip footings | C254: m3 | E254: R 1,800.00 | G254: R 0.00
B256: Slab to cover pit | C256: m3 | E256: R 1,800.00 | G256: R 0.00
B258: TEST BLOCKS | K258: 54 | L258: =K258/2.4 -> 22.5 | M258: =L258*0.6 -> 13.5
B259: Making and testing of three 150 x 150 x 150mm concrete
B260: strength test cubes | C260: No | D260: 1 | E260: R 150.00 | G260: R 150.00
K261: 54 | L261: 0.6 | M261: =L261*K261 -> 32.4
B262: CONCRETE SUNDRIES
B264: Finishing top surfaces of concrete to a Class U2 wood
B265: float finish
B267: Surface beds, slabs, etc | C267: m2 | D267: 6 | E267: R 45.00 | G267: R 270.00
B269: Rough formwork to sides
B271: pit slabs propped up exceeding 1,5m and not exceeding 3.5m
B272: high, including removal from confined area. | C272: m2 | D272: 6 | E272: R 65.00 | G272: R 390.00
B274: MOVEMENT JOINTS ETC
B276: Expansion joints with softboard between vertical concrete
B277: surfaces
B279: 15mm Joints not exceeding 300mm high or wide | C279: m | D279: 5 | E279: R 15.00 | G279: R 75.00
B281: Expansion joints with bitumen-impregnated softboard
B282: between vertical concrete and brickwork surfaces
B284: 10mm Isolation Joints not exceeding 300mm high or wide | C284: m | D284: 5 | E284: R 15.00 | G284: R 75.00
B286: Saw cut joints
B287: 50 x 3mm Saw cut joints in top of concrete | C287: m | D287: 5 | E287: R 15.00 | G287: R 75.00
B289: REINFORCEMENT (PROVISIONAL) (CPAP Work
B290: Group 114)
B292: Mild steel reinforcement to structural concrete work
B294: 10mm Diameter bars | C294: t | E294: R 13,000.00 | G294: R 0.00
B296: 8mm Diameter bars | C296: t | E296: R 13,000.00 | G296: R 0.00
B298: High tensile steel reinforcement to structural concrete
B299: work
B300: 25mm Diameter bars | C300: t | E300: R 13,000.00 | G300: R 0.00
B302: Fabric reinforcement
B304: Type 193 fabric reinforcement in concrete surface beds, slabs, | C304: m2 | D304: 6 | E304: R 145.00 | G304: R 870.00
B305: etc
... 303 more rows
